Workbook

Sheet USV
A4: =VLOOKUP("Absicherung Batteriestromkreis von USV-Anlagen",Übersetzung!$A:$Y,MATCH($M$5,Übersetzung!$1:$1,0),0) -> Absicherung Batteriestromkreis von USV-Anlagen | O4: V2.1.0
M5: deutsch | O5: Hilfe | P5: Help
A6: ! | D6: =VLOOKUP("USV-Daten",Übersetzung!$A:$Y,MATCH($M$5,Übersetzung!$1:$1,0),0) -> USV-Daten | F6: =VLOOKUP("Nennleistung",Übersetzung!$A:$Y,MATCH($M$5,Übersetzung!$1:$1,0),0) -> Nennleistung | H6: 200 | I6: kVA
D7: =VLOOKUP("Wirkungsgrad",Übersetzung!$A:$Y,MATCH($M$5,Übersetzung!$1:$1),0) ->  | F7: =VLOOKUP("cos phi",Übersetzung!$A:$Y,MATCH($M$5,Übersetzung!$1:$1,0),0) -> cos phi | H7: 0.9
A8: =VLOOKUP("Bitte alle orangen Eingabefelder vollständig ausfüllen",Übersetzung!$A:$Y,MATCH($M$5,Übersetzung!$1:$1,0),0) -> Bitte alle orangen Eingabefelder vollständig ausfüllen | D8: =VLOOKUP("Wirkungsgrad",Übersetzung!$A:$Y,MATCH($M$5,Übersetzung!$1:$1),0) ->  | F8: =VLOOKUP("Zwischenkreisspannung",Übersetzung!$A:$Y,MATCH($M$5,Übersetzung!$1:$1,0),0) -> Zwischenkreisspannung | H8: 400 | I8: V
D9: =VLOOKUP("Wirkungsgrad",Übersetzung!$A:$Y,MATCH($M$5,Übersetzung!$1:$1),0) ->  | F9: =VLOOKUP("Wirkungsgrad DC/AC",Übersetzung!$A:$Y,MATCH($M$5,Übersetzung!$1:$1,0),0) -> Wirkungsgrad DC/AC | H9: 90.0%
L10: =VLOOKUP("Datum",Übersetzung!$A:$Y,MATCH($M$5,Übersetzung!$1:$1,0),0) -> Datum | N10: =TODAY() -> 2019-02-20
L11: =VLOOKUP("Projekt-Bezeichnung",Übersetzung!$A:$Y,MATCH($M$5,Übersetzung!$1:$1,0),0) -> Projekt-Bezeichnung
L12: =VLOOKUP("Notizen",Übersetzung!$A:$Y,MATCH($M$5,Übersetzung!$1:$1,0),0) -> Notizen
H17: =VLOOKUP("Mechanische Sicherungsüberwachung",Übersetzung!$A:$Y,MATCH($M$5,Übersetzung!$1:$1,0),0) -> Mechanische Sicherungsüberwachung | K17: ja/yes
D18: =VLOOKUP("Sicherung",Übersetzung!$A:$Y,MATCH($M$5,Übersetzung!$1:$1,0),0) -> Sicherung
H19: =VLOOKUP("Anzahl Batteriestränge",Übersetzung!$A:$Y,MATCH($M$5,Übersetzung!$1:$1,0),0) -> Anzahl Batteriestränge | J19: 2 | M19: =VLOOKUP("Überlast",Übersetzung!$A:$Y,MATCH($M$5,Übersetzung!$1:$1,0),0) -> Überlast | N19: 1 | O19: =VLOOKUP("Überlast",Übersetzung!$A:$Y,MATCH($M$5,Übersetzung!$1:$1,0),0) -> Überlast | P19: 2
H20: =VLOOKUP("Davon redundant",Übersetzung!$A:$Y,MATCH($M$5,Übersetzung!$1:$1,0),0) -> Davon redundant | J20: 1 | L20: =VLOOKUP("Einkalkulieren",Übersetzung!$A:$Y,MATCH($M$5,Übersetzung!$1:$1,0),0) -> Einkalkulieren | M20: nein/no | O20: nein/no
D21: =VLOOKUP("Batterie-Daten",Übersetzung!$A:$Y,MATCH($M$5,Übersetzung!$1:$1,0),0) -> Batterie-Daten | H21: =VLOOKUP("Entladeschlussspannung",Übersetzung!$A:$Y,MATCH($M$5,Übersetzung!$1:$1,0),0) -> Entladeschlussspannung | J21: 350 | K21: V
D22: =VLOOKUP("Sicherung",Übersetzung!$A:$Y,MATCH($M$5,Übersetzung!$1:$1),0) -> Sicherung | H22: =VLOOKUP("Überbrückungszeit",Übersetzung!$A:$Y,MATCH($M$5,Übersetzung!$1:$1,0),0) -> Überbrückungszeit | J22: 15 | K22: =CONCATENATE("min",IF(J22>60,"*","")) -> min | L22: =VLOOKUP("Faktor",Übersetzung!$A:$Y,MATCH($M$5,Übersetzung!$1:$1,0),0) -> Faktor | M22: 1.25 | O22: 1.50
D23: =VLOOKUP("Sicherung",Übersetzung!$A:$Y,MATCH($M$5,Übersetzung!$1:$1),0) -> Sicherung | H23: =VLOOKUP("max. Entladestrom",Übersetzung!$A:$Y,MATCH($M$5,Übersetzung!$1:$1,0),0) -> max. Entladestrom | J23: =IF(J24="ja/yes",J25,(IF(I6="kW",H6*1000/(J21*H9),H7*H6*1000/(J21*H9)))/(J19-J20)) -> 571.43 | K23: A | L23: =VLOOKUP("Strom",Übersetzung!$A:$Y,MATCH($M$5,Übersetzung!$1:$1,0),0) -> Strom | M23: =IF(M20="nein/no",0,M$22*$J$23) -> 0.00 | N23: A | O23: =IF(O20="nein/no",0,O$22*$J$23) -> 0.00 | P23: A
H24: =VLOOKUP("Manuelle Eingabe",Übersetzung!$A:$Y,MATCH($M$5,Übersetzung!$1:$1,0),0) -> Manuelle Eingabe | J24: nein/no | L24: =VLOOKUP("Dauer",Übersetzung!$A:$Y,MATCH($M$5,Übersetzung!$1:$1,0),0) -> Dauer | M24: 10 | N24: min | O24: 1 | P24: min
H25: =VLOOKUP("max. Entladestrom",Übersetzung!$A:$Y,MATCH($M$5,Übersetzung!$1:$1,0),0) -> max. Entladestrom | J25: 100 | K25: A
H26: =IF($J$22>60,VLOOKUP("*Achtung! Bei Überbrückungszeit >60min Leistungsabgabe beachten. Ggf. Hersteller kontaktieren.",Übersetzung!$A:$Y,MATCH($M$5,Übersetzung!$1:$1,0),0),"") -> 
H29: =IF($H$8>440,VLOOKUP("*Achtung! Kein Lastschaltvermögen bei DC-Spannung > 440V. Angaben zur Gebrauchskategorie beachten!",Übersetzung!$A:$Y,MATCH($M$5,Übersetzung!$1:$1,0),0),"") -> 
A30: =VLOOKUP("Bestelldaten",Übersetzung!$A:$Y,MATCH($M$5,Übersetzung!$1:$1,0),0) -> Bestelldaten | D30: =VLOOKUP("Sicherungseinsatz",Übersetzung!$A:$Y,MATCH($M$5,Übersetzung!$1:$1,0),0) -> Sicherungseinsatz | H30: =CONCATENATE(VLOOKUP("NH-Sicherungslasttrennschalter",Übersetzung!$A:$Y,MATCH($M$5,Übersetzung!$1:$1,0),0),IF($H$8>440,"*","")) -> NH-Sicherungslasttrennschalter | P30: =VLOOKUP("Trennmesser",Übersetzung!$A:$Y,MATCH($M$5,Übersetzung!$1:$1,0),0) -> Trennmesser
H31: =VLOOKUP("1-polig",Übersetzung!$A:$Y,MATCH($M$5,Übersetzung!$1:$1,0),0) -> 1-polig | J31: =VLOOKUP("2-polig",Übersetzung!$A:$Y,MATCH($M$5,Übersetzung!$1:$1,0),0) -> 2-polig | L31: =VLOOKUP("3-polig",Übersetzung!$A:$Y,MATCH($M$5,Übersetzung!$1:$1,0),0) -> 3-polig | N31: =VLOOKUP("4-polig",Übersetzung!$A:$Y,MATCH($M$5,Übersetzung!$1:$1,0),0) -> 4-polig
C32: =VLOOKUP("Baugröße",Übersetzung!$A:$Y,MATCH($M$5,Übersetzung!$1:$1,0),0) -> Baugröße | D32: =IF($H$8<=550,"Un AC",IF($H$8<=800,"Un DC","-")) -> Un AC | E32: Art.-Nr (ohne Link) | F32: In | G32: =VLOOKUP("Art.-Nr.",Übersetzung!$A:$Y,MATCH($M$5,Übersetzung!$1:$1,0),0) -> Art.-Nr. | H32: =VLOOKUP("LTL",Übersetzung!$A:$Y,MATCH($M$5,Übersetzung!$1:$1,0),0) -> LTL | I32: =VLOOKUP("mech. SÜ",Übersetzung!$A:$Y,MATCH($M$5,Übersetzung!$1:$1,0),0) -> mech. SÜ | J32: =VLOOKUP("LTL",Übersetzung!$A:$Y,MATCH($M$5,Übersetzung!$1:$1,0),0) -> LTL | K32: =VLOOKUP("mech. SÜ",Übersetzung!$A:$Y,MATCH($M$5,Übersetzung!$1:$1,0),0) -> mech. SÜ | L32: =VLOOKUP("LTL",Übersetzung!$A:$Y,MATCH($M$5,Übersetzung!$1:$1,0),0) -> LTL | M32: =VLOOKUP("mech. SÜ",Übersetzung!$A:$Y,MATCH($M$5,Übersetzung!$1:$1,0),0) -> mech. SÜ | N32: =VLOOKUP("LTL",Übersetzung!$A:$Y,MATCH($M$5,Übersetzung!$1:$1,0),0) -> LTL | O32: =VLOOKUP("mech. SÜ",Übersetzung!$A:$Y,MATCH($M$5,Übersetzung!$1:$1,0),0) -> mech. SÜ
B33: =VLOOKUP("Einfach",Übersetzung!$A:$Y,MATCH($M$5,Übersetzung!$1:$1,0),0) -> Einfach | C33: NH00 | D33: =IF($H$8<=440,"500V",IF($H$8<=550,"690V",IF($H$8<=700,"700V",IF($H$8<=800,"800V","-")))) -> 500V | E33: =VLOOKUP($D$33,Berechnung!$A$6:$AE$10,6+IF($K$17="nein/no",0,1),0) -> - | F33: =IF(ISNA(VLOOKUP($D$33,Berechnung!$A$6:$AE$10,5,0)),"-",CONCATENATE(VLOOKUP($D$33,Berechnung!$A$6:$AE$10,5,0),"A")) -> - | G33: =IF(E33="-","-",HYPERLINK(CONCATENATE("http://www.jeanmueller.de/produkte/jean/",IF($M$5="deutsch","de_DE","en_GB"),"/all/a/PR/",E33,"/index.xhtml?pk_campaign=battery-protection"),E33)) -> - | H33: =IF($G33="-","-",HYPERLINK(CONCATENATE("http://www.jeanmueller.de/produkte/jean/",IF($M$5="deutsch","de_DE","en_GB"),"/all/a/PR/",KETO!B2,"/index.xhtml?pk_campaign=battery-protection"),KETO!B2)) -> - | I33: =IF($K$17="ja/yes",IF($G33="-","-",HYPERLINK(CONCATENATE("http://www.jeanmueller.de/produkte/jean/",IF($M$5="deutsch","de_DE","en_GB"),"/all/a/PR/",KETO!C2,"/index.xhtml?pk_campaign=battery-protection"),KETO!C2)),"-") -> - | J33: =IF($G33="-","-",HYPERLINK(CONCATENATE("http://www.jeanmueller.de/produkte/jean/",IF($M$5="deutsch","de_DE","en_GB"),"/all/a/PR/",KETO!D2,"/index.xhtml?pk_campaign=battery-protection"),KETO!D2)) -> - | K33: =IF($K$17="ja/yes",IF($G33="-","-",HYPERLINK(CONCATENATE("http://www.jeanmueller.de/produkte/jean/",IF($M$5="deutsch","de_DE","en_GB"),"/all/a/PR/",KETO!E2,"/index.xhtml?pk_campaign=battery-protection"),KETO!E2)),"-") -> - | L33: =IF($G33="-","-",HYPERLINK(CONCATENATE("http://www.jeanmueller.de/produkte/jean/",IF($M$5="deutsch","de_DE","en_GB"),"/all/a/PR/",KETO!F2,"/index.xhtml?pk_campaign=battery-protection"),KETO!F2)) -> - | M33: =IF($K$17="ja/yes",IF($G33="-","-",HYPERLINK(CONCATENATE("http://www.jeanmueller.de/produkte/jean/",IF($M$5="deutsch","de_DE","en_GB"),"/all/a/PR/",KETO!G2,"/index.xhtml?pk_campaign=battery-protection"),KETO!G2)),"-") -> - | N33: - | O33: - | P33: =IF($G33="-","-",HYPERLINK(CONCATENATE("http://www.jeanmueller.de/produkte/jean/",IF($M$5="deutsch","de_DE","en_GB"),"/all/a/PR/",KETO!J2,"/index.xhtml?pk_campaign=battery-protection"),KETO!J2)) -> -
B34: =VLOOKUP("Leistung",Übersetzung!$A:$Y,MATCH($M$5,Übersetzung!$1:$1),0) ->  | C34: NH1 | E34: =VLOOKUP($D$33,Berechnung!$A$6:$AE$10,12+IF($K$17="nein/no",0,1),0) -> - | F34: =IF(OR(ISNA(VLOOKUP($D$33,Berechnung!$A$6:$AE$10,11,0)),VLOOKUP($D$33,Berechnung!$A$6:$AE$10,11,0)=25),"-",CONCATENATE(VLOOKUP($D$33,Berechnung!$A$6:$AE$10,11,0),"A")) -> 500A | G34: - | H34: =IF($G34="-","-",HYPERLINK(CONCATENATE("http://www.jeanmueller.de/produkte/jean/",IF($M$5="deutsch","de_DE","en_GB"),"/all/a/PR/",KETO!B3,"/index.xhtml?pk_campaign=battery-protection"),KETO!B3)) -> - | I34: =IF($K$17="ja/yes",IF($G34="-","-",HYPERLINK(CONCATENATE("http://www.jeanmueller.de/produkte/jean/",IF($M$5="deutsch","de_DE","en_GB"),"/all/a/PR/",KETO!C3,"/index.xhtml?pk_campaign=battery-protection"),KETO!C3)),"-") -> - | J34: =IF($G34="-","-",HYPERLINK(CONCATENATE("http://www.jeanmueller.de/produkte/jean/",IF($M$5="deutsch","de_DE","en_GB"),"/all/a/PR/",KETO!D3,"/index.xhtml?pk_campaign=battery-protection"),KETO!D3)) -> - | K34: =IF($K$17="ja/yes",IF($G34="-","-",HYPERLINK(CONCATENATE("http://www.jeanmueller.de/produkte/jean/",IF($M$5="deutsch","de_DE","en_GB"),"/all/a/PR/",KETO!E3,"/index.xhtml?pk_campaign=battery-protection"),KETO!E3)),"-") -> - | L34: =IF($G34="-","-",HYPERLINK(CONCATENATE("http://www.jeanmueller.de/produkte/jean/",IF($M$5="deutsch","de_DE","en_GB"),"/all/a/PR/",KETO!F3,"/index.xhtml?pk_campaign=battery-protection"),KETO!F3)) -> - | M34: =IF($K$17="ja/yes",IF($G34="-","-",HYPERLINK(CONCATENATE("http://www.jeanmueller.de/produkte/jean/",IF($M$5="deutsch","de_DE","en_GB"),"/all/a/PR/",KETO!G3,"/index.xhtml?pk_campaign=battery-protection"),KETO!G3)),"-") -> - | N34: - | O34: - | P34: =IF($G34="-","-",HYPERLINK(CONCATENATE("http://www.jeanmueller.de/produkte/jean/",IF($M$5="deutsch","de_DE","en_GB"),"/all/a/PR/",KETO!J3,"/index.xhtml?pk_campaign=battery-protection"),KETO!J3)) -> -
B35: =VLOOKUP("Leistung",Übersetzung!$A:$Y,MATCH($M$5,Übersetzung!$1:$1),0) ->  | C35: NH2 | E35: =VLOOKUP($D$33,Berechnung!$A$6:$AE$10,18+IF($K$17="nein/no",0,1),0) -> - | G35: - | H35: =IF($G35="-","-",HYPERLINK(CONCATENATE("http://www.jeanmueller.de/produkte/jean/",IF($M$5="deutsch","de_DE","en_GB"),"/all/a/PR/",KETO!B4,"/index.xhtml?pk_campaign=battery-protection"),KETO!B4)) -> - | I35: =IF($K$17="ja/yes",IF($G35="-","-",HYPERLINK(CONCATENATE("http://www.jeanmueller.de/produkte/jean/",IF($M$5="deutsch","de_DE","en_GB"),"/all/a/PR/",KETO!C4,"/index.xhtml?pk_campaign=battery-protection"),KETO!C4)),"-") -> - | J35: =IF($G35="-","-",HYPERLINK(CONCATENATE("http://www.jeanmueller.de/produkte/jean/",IF($M$5="deutsch","de_DE","en_GB"),"/all/a/PR/",KETO!D4,"/index.xhtml?pk_campaign=battery-protection"),KETO!D4)) -> - | K35: =IF($K$17="ja/yes",IF($G35="-","-",HYPERLINK(CONCATENATE("http://www.jeanmueller.de/produkte/jean/",IF($M$5="deutsch","de_DE","en_GB"),"/all/a/PR/",KETO!E4,"/index.xhtml?pk_campaign=battery-protection"),KETO!E4)),"-") -> - | L35: =IF($G35="-","-",HYPERLINK(CONCATENATE("http://www.jeanmueller.de/produkte/jean/",IF($M$5="deutsch","de_DE","en_GB"),"/all/a/PR/",KETO!F4,"/index.xhtml?pk_campaign=battery-protection"),KETO!F4)) -> - | M35: =IF($K$17="ja/yes",IF($G35="-","-",HYPERLINK(CONCATENATE("http://www.jeanmueller.de/produkte/jean/",IF($M$5="deutsch","de_DE","en_GB"),"/all/a/PR/",KETO!G4,"/index.xhtml?pk_campaign=battery-protection"),KETO!G4)),"-") -> - | N35: - | O35: - | P35: =IF($G35="-","-",HYPERLINK(CONCATENATE("http://www.jeanmueller.de/produkte/jean/",IF($M$5="deutsch","de_DE","en_GB"),"/all/a/PR/",KETO!J4,"/index.xhtml?pk_campaign=battery-protection"),KETO!J4)) -> -
B36: =VLOOKUP("Leistung",Übersetzung!$A:$Y,MATCH($M$5,Übersetzung!$1:$1),0) ->  | C36: NH3 | E36: =VLOOKUP($D$33,Berechnung!$A$6:$AE$10,24+IF($K$17="nein/no",0,1),0) -> R3216604 | G36: R3216604 | H36: =IF($G36="-","-",HYPERLINK(CONCATENATE("http://www.jeanmueller.de/produkte/jean/",IF($M$5="deutsch","de_DE","en_GB"),"/all/a/PR/",KETO!B5,"/index.xhtml?pk_campaign=battery-protection"),KETO!B5)) -> T300111000 | I36: =IF($K$17="ja/yes",IF($G36="-","-",HYPERLINK(CONCATENATE("http://www.jeanmueller.de/produkte/jean/",IF($M$5="deutsch","de_DE","en_GB"),"/all/a/PR/",KETO!C5,"/index.xhtml?pk_campaign=battery-protection"),KETO!C5)),"-") -> T8092170 | J36: =IF($G36="-","-",HYPERLINK(CONCATENATE("http://www.jeanmueller.de/produkte/jean/",IF($M$5="deutsch","de_DE","en_GB"),"/all/a/PR/",KETO!D5,"/index.xhtml?pk_campaign=battery-protection"),KETO!D5)) -> T300112000 | K36: =IF($K$17="ja/yes",IF($G36="-","-",HYPERLINK(CONCATENATE("http://www.jeanmueller.de/produkte/jean/",IF($M$5="deutsch","de_DE","en_GB"),"/all/a/PR/",KETO!E5,"/index.xhtml?pk_campaign=battery-protection"),KETO!E5)),"-") -> T8092170 | L36: =IF($G36="-","-",HYPERLINK(CONCATENATE("http://www.jeanmueller.de/produkte/jean/",IF($M$5="deutsch","de_DE","en_GB"),"/all/a/PR/",KETO!F5,"/index.xhtml?pk_campaign=battery-protection"),KETO!F5)) -> T300113000 | M36: =IF($K$17="ja/yes",IF($G36="-","-",HYPERLINK(CONCATENATE("http://www.jeanmueller.de/produkte/jean/",IF($M$5="deutsch","de_DE","en_GB"),"/all/a/PR/",KETO!G5,"/index.xhtml?pk_campaign=battery-protection"),KETO!G5)),"-") -> T8092170 | N36: - | O36: - | P36: =IF($G36="-","-",HYPERLINK(CONCATENATE("http://www.jeanmueller.de/produkte/jean/",IF($M$5="deutsch","de_DE","en_GB"),"/all/a/PR/",KETO!J5,"/index.xhtml?pk_campaign=battery-protection"),KETO!J5)) -> N8386910
B37: =VLOOKUP("Leistung",Übersetzung!$A:$Y,MATCH($M$5,Übersetzung!$1:$1),0) ->  | C37: NH4a | E37: =VLOOKUP($D$33,Berechnung!$A$6:$AE$10,30+IF($K$17="nein/no",0,1),0) -> - | G37: - | H37: =IF($G37="-","-",HYPERLINK(CONCATENATE("http://www.jeanmueller.de/produkte/jean/",IF($M$5="deutsch","de_DE","en_GB"),"/all/a/PR/",IF(LEFT($E$37,6)="R42182",KETO!B7,KETO!B6),"/index.xhtml?pk_campaign=battery-protection"),IF(LEFT($E$37,6)="R42182",KETO!B7,KETO!B6))) -> - | I37: =IF($K$17="ja/yes",IF($G37="-","-",HYPERLINK(CONCATENATE("http://www.jeanmueller.de/produkte/jean/",IF($M$5="deutsch","de_DE","en_GB"),"/all/a/PR/",KETO!C6,"/index.xhtml?pk_campaign=battery-protection"),KETO!C6)),"-") -> - | J37: =IF($G37="-","-",HYPERLINK(CONCATENATE("http://www.jeanmueller.de/produkte/jean/",IF($M$5="deutsch","de_DE","en_GB"),"/all/a/PR/",IF(LEFT($E$37,6)="R42182",KETO!D7,KETO!D6),"/index.xhtml?pk_campaign=battery-protection"),IF(LEFT($E$37,6)="R42182",KETO!D7,KETO!D6))) -> - | K37: =IF($K$17="ja/yes",IF($G37="-","-",HYPERLINK(CONCATENATE("http://www.jeanmueller.de/produkte/jean/",IF($M$5="deutsch","de_DE","en_GB"),"/all/a/PR/",KETO!E6,"/index.xhtml?pk_campaign=battery-protection"),KETO!E6)),"-") -> - | L37: =IF($G37="-","-",HYPERLINK(CONCATENATE("http://www.jeanmueller.de/produkte/jean/",IF($M$5="deutsch","de_DE","en_GB"),"/all/a/PR/",IF(LEFT($E$37,6)="R42182",KETO!F7,KETO!F6),"/index.xhtml?pk_campaign=battery-protection"),IF(LEFT($E$37,6)="R42182",KETO!F7,KETO!F6))) -> - | M37: =IF($K$17="ja/yes",IF($G37="-","-",HYPERLINK(CONCATENATE("http://www.jeanmueller.de/produkte/jean/",IF($M$5="deutsch","de_DE","en_GB"),"/all/a/PR/",KETO!G6,"/index.xhtml?pk_campaign=battery-protection"),KETO!G6)),"-") -> - | N37: - | O37: - | P37: =IF($G37="-","-",HYPERLINK(CONCATENATE("http://www.jeanmueller.de/produkte/jean/",IF($M$5="deutsch","de_DE","en_GB"),"/all/a/PR/",IF(LEFT($E$37,6)="R42182",KETO!J7,KETO!J6),"/index.xhtml"),IF(LEFT($E$37,6)="R42182",KETO!J7,KETO!J6))) -> -
B38: =VLOOKUP("Parallel",Übersetzung!$A:$Y,MATCH($M$5,Übersetzung!$1:$1,0),0) -> Parallel | C38: 2xNH2 | D38: =IF($H$8<=440,"500V",IF($H$8<=550,"690V",IF($H$8<=700,"700V",IF($H$8<=800,"800V","-")))) -> 500V | E38: =VLOOKUP($D$33,Berechnung!$A$17:$AE$21,18+IF($K$17="nein/no",0,1),0) -> R2215904 | F38: =IF(OR(ISNA(VLOOKUP($D$33,Berechnung!$A$17:$AE$21,11,0)),VLOOKUP($D$33,Berechnung!$A$17:$AE$21,11,0)<315),"-",CONCATENATE("2x",VLOOKUP($D$33,Berechnung!$A$17:$AE$21,11,0),"A")) -> 2x315A | G38: R2215904 | H38: - | I38: - | J38: =IF($G38="-","-",HYPERLINK(CONCATENATE("http://www.jeanmueller.de/produkte/jean/",IF($M$5="deutsch","de_DE","en_GB"),"/all/a/PR/",KETO!D4,"/index.xhtml?pk_campaign=battery-protection"),KETO!D4)) -> T300112000 | K38: =IF($K$17="ja/yes",IF($G38="-","-",HYPERLINK(CONCATENATE("http://www.jeanmueller.de/produkte/jean/",IF($M$5="deutsch","de_DE","en_GB"),"/all/a/PR/",KETO!E4,"/index.xhtml?pk_campaign=battery-protection"),KETO!E4)),"-") -> T8092170 | L38: - | M38: - | N38: =IF($G38="-","-",HYPERLINK(CONCATENATE("http://www.jeanmueller.de/produkte/jean/",IF($M$5="deutsch","de_DE","en_GB"),"/all/a/PR/",KETO!H4,"/index.xhtml?pk_campaign=battery-protection"),KETO!H4)) -> T300114000 | O38: =IF($K$17="ja/yes",IF($G38="-","-",HYPERLINK(CONCATENATE("http://www.jeanmueller.de/produkte/jean/",IF($M$5="deutsch","de_DE","en_GB"),"/all/a/PR/",KETO!I4,"/index.xhtml?pk_campaign=battery-protection"),KETO!I4)),"-") -> T8092170 | P38: =IF($G38="-","-",HYPERLINK(CONCATENATE("http://www.jeanmueller.de/produkte/jean/",IF($M$5="deutsch","de_DE","en_GB"),"/all/a/PR/",KETO!J4,"/index.xhtml?pk_campaign=battery-protection"),KETO!J4)) -> N8286210
B39: =VLOOKUP("Leistung",Übersetzung!$A:$Y,MATCH($M$5,Übersetzung!$1:$1),0) ->  | C39: 2xNH3 | E39: =VLOOKUP($D$33,Berechnung!$A$17:$AE$21,24+IF($K$17="nein/no",0,1),0) -> R3215904 | G39: R3215904 | H39: - | I39: - | J39: =IF($G39="-","-",HYPERLINK(CONCATENATE("http://www.jeanmueller.de/produkte/jean/",IF($M$5="deutsch","de_DE","en_GB"),"/all/a/PR/",KETO!D5,"/index.xhtml?pk_campaign=battery-protection"),KETO!D5)) -> T300112000 | K39: =IF($K$17="ja/yes",IF($G39="-","-",HYPERLINK(CONCATENATE("http://www.jeanmueller.de/produkte/jean/",IF($M$5="deutsch","de_DE","en_GB"),"/all/a/PR/",KETO!E5,"/index.xhtml?pk_campaign=battery-protection"),KETO!E5)),"-") -> T8092170 | L39: - | M39: - | N39: =IF($G39="-","-",HYPERLINK(CONCATENATE("http://www.jeanmueller.de/produkte/jean/",IF($M$5="deutsch","de_DE","en_GB"),"/all/a/PR/",KETO!H5,"/index.xhtml?pk_campaign=battery-protection"),KETO!H5)) -> T300114000 | O39: =IF($K$17="ja/yes",IF($G39="-","-",HYPERLINK(CONCATENATE("http://www.jeanmueller.de/produkte/jean/",IF($M$5="deutsch","de_DE","en_GB"),"/all/a/PR/",KETO!I5,"/index.xhtml?pk_campaign=battery-protection"),KETO!I5)),"-") -> T8092170 | P39: =IF($G39="-","-",HYPERLINK(CONCATENATE("http://www.jeanmueller.de/produkte/jean/",IF($M$5="deutsch","de_DE","en_GB"),"/all/a/PR/",KETO!J5,"/index.xhtml?pk_campaign=battery-protection"),KETO!J5)) -> N8386910
B40: =VLOOKUP("Leistung",Übersetzung!$A:$Y,MATCH($M$5,Übersetzung!$1:$1),0) ->  | C40: 2xNH4a | E40: =VLOOKUP($D$33,Berechnung!$A$17:$AE$21,30+IF($K$17="nein/no",0,1),0) -> - | G40: - | H40: - | I40: - | J40: =IF($G40="-","-",HYPERLINK(CONCATENATE("http://www.jeanmueller.de/produkte/jean/",IF($M$5="deutsch","de_DE","en_GB"),"/all/a/PR/",IF(LEFT($E$40,6)="R42182",KETO!D7,KETO!D6),"/index.xhtml?pk_campaign=battery-protection"),IF(LEFT($E$40,6)="R42182",KETO!D7,KETO!D6))) -> - | K40: =IF($K$17="ja/yes",IF($G40="-","-",HYPERLINK(CONCATENATE("http://www.jeanmueller.de/produkte/jean/",IF($M$5="deutsch","de_DE","en_GB"),"/all/a/PR/",KETO!E6,"/index.xhtml?pk_campaign=battery-protection"),KETO!E6)),"-") -> - | L40: - | M40: - | N40: =IF($G40="-","-",HYPERLINK(CONCATENATE("http://www.jeanmueller.de/produkte/jean/",IF($M$5="deutsch","de_DE","en_GB"),"/all/a/PR/",IF(LEFT($E$40,6)="R42182",KETO!H7,KETO!H6),"/index.xhtml?pk_campaign=battery-protection"),IF(LEFT($E$40,6)="R42182",KETO!H7,KETO!H6))) -> - | O40: =IF($K$17="ja/yes",IF($G40="-","-",HYPERLINK(CONCATENATE("http://www.jeanmueller.de/produkte/jean/",IF($M$5="deutsch","de_DE","en_GB"),"/all/a/PR/",KETO!I6,"/index.xhtml?pk_campaign=battery-protection"),KETO!I6)),"-") -> - | P40: =IF($G40="-","-",HYPERLINK(CONCATENATE("http://www.jeanmueller.de/produkte/jean/",IF($M$5="deutsch","de_DE","en_GB"),"/all/a/PR/",IF(LEFT($E$40,6)="R42182",KETO!J7,KETO!J6),"/index.xhtml"),IF(LEFT($E$40,6)="R42182",KETO!J7,KETO!J6))) -> -

Sheet Hilfe
G2: Betriebspunkt (tB/IB)
G3: Der maximale Betriebsstrom IB ergibt sich aus der USV-Wirkleistung und Entladeschlussspannung: IB = PW/UE. tB entspricht dabei der Überbrückungszeit der USV-Anlage. Hierbei ist der ungünstigste Fall des Betriebs unter Wegfall evtl. vorgesehener Redundanzen zu berücksichtigen
G11: Überlasten (tO/IO)
G12: Zulässige Überlasten (IO) und ihre Dauer (tO) sind ebenfalls zu berücksichtigen.
G15: Alle Betriebspunkte müssen in ausreichendem Abstand unterhalb Kennlinie liegen. Hieraus erfolgt die Auswahl des notwendigen Bemessungsstroms der Sicherung.
B23: Eingaben der USV- und Batteriedaten erfolgen in den orangen Feldern. Optional können Notizen in den gelben Feldern eingetragen werden.
A25: 1) | B25: Eingabe Leistungsdaten der USV-Anlage. Die Zwischenkreisspannung ist dabei ausschlaggebend für die Bemesssungspannung der Sicherung. Die Erhaltungsladespannung dagegen ist nicht für das Schaltverhalten der Sicherung relevant. Sie sollte jedoch maximal der Isolationsspannung des verwendeten Schaltgeräts entsprechen. Für die Berechnung ist grundsätzlich nur der Wirkungsgrad des Wechselrichters relevant (Von der Batterie zum Verbraucher). Falls nur der Gesamt-Wirkungsgrad AC/AC bekannt ist, liegt die Berechnung aber auf der sicheren Seite.
A26: 2) | B26: Wenn der Sicherungsfall über eine mech. Sicherungsüberwachung weitergemeldet werden soll, ist hier ja auszuwählen. Dadurch werden automatisch Sicherungseinsätze mit Kraftmelder und das entsprechende Zubehör für die NH-Sicherungslasttrennschalter vorgeschlagen.
A27: 3) | B27: Eingabe der für die Batterie relevanten Daten. Die Entladeschlussspannung dient zur Berechnung des max. Entladestroms unter Berücksichtigung der angegebenen redundanten Batteriestränge
A28: 4) | B28: Falls stattdessen eine manuelle Eingabe des max. Entladestroms gewünscht ist, kann dies hier umgestellt werden.
A29: 5) | B29: Bis zu zwei Überlasten können zusätzlich in die Berechnung mit einkalkuliert werden. Hier sind Faktor und Dauer anzugeben.
A30: 6-8) | B30: Nach Eingabe aller relevanten Daten werden in dieser Tabelle die Artikel-Nummern für Sicherungseinsatz (6), NH-Sicherungslasttrennschalter je nach benötigter Polzahl ggf. mit mech. Sicherungsüberwachung (7) und Trennmesser für ungesicherte Pole (8) ausgegeben. Die Artikelnummern verlinken dabei direkt auf unseren Online-Produktkatalog.
B31: Zurück

Sheet Help
G2: Operating point (tB/IB)
G3: The maximum operating current IB is calculated from the UPS effective power and the final discharge voltage: IB = PW/UE. tB corresponds to the backup time of the UPS system. Here the operation with outage of potential redundant battery strings has to be considered.
G11: Overload (tO/IO)
G12: Permissible overload (IO) and their duration (tO) have also to be considered.
G15: All operating points have to be located below the time current characteristics curve with sufficient distance. From this results the selection of the required rated current for the fuse.
B23: Input of UPS and battery data takes place in the orange input fields. Optional notes can be placed in the yellow fields.
A25: 1) | B25: Input of UPS ratings. The DC link voltage is crucial for the rated voltage of the fuse-link. On the contrary the float voltage is not relevant for the breaking behaviour of the fuse-link. It should not exceed the isolation voltage of the applied switchgear. Basically only the efficiency of the inverter (battery to load) is relevant for the calculation. If only the complete efficiency AC/AC is known the calculation will still be on the safe side.
A26: 2) | B26: If fuse-tripping should be monitored by a mechanical fuse-monitoring you should select yes. Thereby automatically fuse-links with striker indicator and respective accessories for the fuse-switch-disconnectors are recommended.
A27: 3) | B27: Input of all relevant data for the battery. The final discharge voltage is the base for calculating the max. discharge current while considering the specified redundant battery strings.
A28: 4) | B28: If the optional manual input of the max. discharge current is required, this can be changed here.
A29: 5) | B29: Up to two overloads can be considered in the calculation. Here you can input the overload factor and duration.
A30: 6-8) | B30: After input of all relevant data this table displays the article codes for fuse-link (6), NH fuse-switch-disconnector according to the required no. of poles with mechanical fuse-monitoring if applicable (7) and solid links for non-protected poles (8). The article numbers directly link to our online product catalogue.
B31: Back

Sheet Übersetzung (hidden)
A1: deutsch | B1: english
A2: Absicherung Batteriestromkreis von USV-Anlagen | B2: Protection of UPS battery circuit
A3: USV-Daten | B3: UPS data
A4: Nennleistung | B4: Rated power
A5: cos phi | B5: Power factor
A6: Zwischenkreisspannung | B6: DC link circuit voltage
A7: Wirkungsgrad DC/AC | B7: Efficiency DC/AC
A8: Sicherung | B8: Fuse
A9: Batterie-Daten | B9: Battery data
A10: Mechanische Sicherungsüberwachung | B10: Mechanical fuse-monitoring
A11: ja | B11: yes
A12: nein | B12: no
A13: Entladeschlussspannung | B13: Final discharge voltage
A14: Überbrückungszeit | B14: Backup time
A15: max. Entladestrom | B15: max. discharge current
A16: Bitte alle orangen Eingabefelder vollständig ausfüllen | B16: Please fill all orange input fields completely
A17: Bestelldaten | B17: Order data
A18: Einfach | B18: Single
A19: Parallel | B19: Parallel
A20: Sicherungseinsatz | B20: Fuse-link
A21: NH-Sicherungslasttrennschalter | B21: NH switch disconnector
A22: Trennmesser | B22: Solid link
A23: 1-polig | B23: 1-pole
A24: 2-polig | B24: 2-pole
A25: 3-polig | B25: 3-pole
A26: 4-polig | B26: 4-pole
A27: Baugröße | B27: Size
A28: Art.-Nr. | B28: Art.-No.
A29: LTL | B29: LTL
A30: mech. SÜ | B30: mech. FM
A31: Projekt-Bezeichnung | B31: Project name
A32: Notizen | B32: Notes
A33: Hilfe | B33: Help
A34: Anzahl Batteriestränge | B34: No. of battery strings
A35: Davon redundant | B35: Of which are redundant
A36: Datum | B36: Date
A37: Manuelle Eingabe | B37: Manual input
A38: Überlast | B38: Overload
A39: Faktor | B39: Factor
A40: Strom | B40: Current
A41: Dauer | B41: Duration
A42: Einkalkulieren | B42: Include
A43: *Achtung! Kein Lastschaltvermögen bei DC-Spannung > 440V. Angaben zur Gebrauchskategorie beachten! | B43: *Attention! No load breaking capability for DC voltages >440V. Consider given utilization category!
A44: *Achtung! Bei Überbrückungszeit >60min Leistungsabgabe beachten. Ggf. Hersteller kontaktieren. | B44: *Attention! For backup time >60min consider power dissipation. Contact manufacturer if necessary.

Sheet Release Notes (hidden)
A1: Version | B1: Änderungen
A2: 2.0 | B2: Komplette Überarbeitung mit Integration der neuen Batteriesicherungen 700V und 800V
A3: 2.0.1 | B3: Fehlerkorrekturen
A4: 2.0.2 | B4: Ergänzung von Hinweisen zur Leistungsabgabe bei Überbrückungszeiten >60min und zum DC-Lastschaltvermögen
A5: 2.0.3 | B5: Fehlerkorrektur: Bei kleinen Strömen immer Ausgabe der 35A-Sicherung in Größe NH1
A6: 2.0.4 | B6: Ergänzung, dass nur Wirkungsgrad des Wechselrichters benötigt wird (DC/AC-Wandlung von Batterie zu Verbraucherseite). Falls AC/AC-Wirkungsgrad eingesetzt ist, liegt die Berechnung aber auf sicherer Seite.
A7: 2.1.0 | B7: Integration von KETO

Sheet Berechnung (hidden)
A1: max. Entladestrom | B1: Überlast 1 | C1: Überlast 2
A2: =USV!J23 -> 571.43 | B2: =USV!M23 -> 0 | C2: =USV!O23 -> 0
B4: NH000 | H4: NH1 | N4: NH2 | T4: NH3 | Z4: NH4a
B5: Entladung | C5: Überlast 1 | D5: Überlast 2 | E5: Max. | F5: Standard | G5: /K | H5: Entladung | I5: Überlast 1 | J5: Überlast 2 | K5: Max. | L5: Standard | M5: /K | N5: Entladung | O5: Überlast 1 | P5: Überlast 2 | Q5: Max. | R5: Standard | S5: /K | T5: Entladung | U5: Überlast 1 | V5: Überlast 2 | W5: Max. | X5: Standard | Y5: /K | Z5: Entladung | AA5: Überlast 1 | AB5: Überlast 2 | AC5: Max. | AD5: Standard | AE5: /K
A6: 500V | B6: =OFFSET('NH00C-500V'!$A$5,0,MATCH(A$2,'NH00C-500V'!$B$24:$O$24,-1)) ->  | C6: =OFFSET('NH00C-500V'!$A$5,0,MATCH(B$2,'NH00C-500V'!$B$27:$O$27,-1)) -> 6 | D6: =OFFSET('NH00C-500V'!$A$5,0,MATCH(C$2,'NH00C-500V'!$B$30:$O$30,-1)) -> 6 | E6: =MAX(B6:D6) ->  | F6: =IF(ISNA(E6),"-",VLOOKUP(E6,'SE-500V'!$A:$K,2,0)) -> - | G6: =IF(ISNA(E6),"-",VLOOKUP(E6,'SE-500V'!$A:$K,7,0)) -> - | H6: =OFFSET('NH1-4a-500V'!$A$5,0,MATCH(A$2,'NH1-4a-500V'!$B$24:$W$24,-1)) -> 500 | I6: =OFFSET('NH1-4a-500V'!$A$5,0,MATCH(B$2,'NH1-4a-500V'!$B$27:$W$27,-1)) -> 25 | J6: =OFFSET('NH1-4a-500V'!$A$5,0,MATCH(C$2,'NH1-4a-500V'!$B$30:$W$30,-1)) -> 25 | K6: =MAX(H6:J6) -> 500 | L6: =IF(ISNA(K6),"-",VLOOKUP(K6,'SE-500V'!$A:$K,3,0)) -> - | M6: =IF(ISNA(K6),"-",VLOOKUP(K6,'SE-500V'!$A:$K,8,0)) -> - | N6: =OFFSET('NH1-4a-500V'!$A$5,0,MATCH(A$2,'NH1-4a-500V'!$B$24:$V$24,-1)) -> 500 | O6: =OFFSET('NH1-4a-500V'!$A$5,0,MATCH(B$2,'NH1-4a-500V'!$B$27:$V$27,-1)) -> 35 | P6: =OFFSET('NH1-4a-500V'!$A$5,0,MATCH(C$2,'NH1-4a-500V'!$B$30:$V$30,-1)) -> 35 | Q6: =MAX(N6:P6) -> 500 | R6: =IF(ISNA(Q6),"-",VLOOKUP(Q6,'SE-500V'!$A:$K,4,0)) -> - | S6: =IF(ISNA(Q6),"-",VLOOKUP(Q6,'SE-500V'!$A:$K,9,0)) -> - | T6: =OFFSET('NH1-4a-500V'!$A$5,0,MATCH(A$2,'NH1-4a-500V'!$B$24:$V$24,-1)) -> 500 | U6: =OFFSET('NH1-4a-500V'!$A$5,0,MATCH(B$2,'NH1-4a-500V'!$B$27:$V$27,-1)) -> 35 | V6: =OFFSET('NH1-4a-500V'!$A$5,0,MATCH(C$2,'NH1-4a-500V'!$B$30:$V$30,-1)) -> 35 | W6: =MAX(T6:V6) -> 500 | X6: =IF(ISNA(W6),"-",VLOOKUP(W6,'SE-500V'!$A:$K,5,0)) -> R3216600 | Y6: =IF(ISNA(W6),"-",VLOOKUP(W6,'SE-500V'!$A:$K,10,0)) -> R3216604 | Z6: =OFFSET('NH1-4a-500V'!$A$5,0,MATCH(A$2,'NH1-4a-500V'!$B$24:$V$24,-1)) -> 500 | AA6: =OFFSET('NH1-4a-500V'!$A$5,0,MATCH(B$2,'NH1-4a-500V'!$B$27:$V$27,-1)) -> 35 | AB6: =OFFSET('NH1-4a-500V'!$A$5,0,MATCH(C$2,'NH1-4a-500V'!$B$30:$V$30,-1)) -> 35 | AD6: =IF(ISNA(Z6),"-",VLOOKUP(Z6,'SE-500V'!$A:$K,6,0)) -> - | AE6: =IF(ISNA(Z6),"-",VLOOKUP(Z6,'SE-500V'!$A:$K,11,0)) -> -
A7: 690V | B7: =OFFSET('NH00C-690V'!$A$5,0,MATCH(A$2,'NH00C-690V'!$B$24:$M$24,-1)) ->  | C7: =OFFSET('NH00C-690V'!$A$5,0,MATCH(B$2,'NH00C-690V'!$B$27:$M$27,-1)) -> 10 | D7: =OFFSET('NH00C-690V'!$A$5,0,MATCH(C$2,'NH00C-690V'!$B$30:$M$30,-1)) -> 10 | E7: =MAX(B7:D7) ->  | F7: =IF(ISNA(E7),"-",VLOOKUP(E7,'SE-690V'!$A:$K,2,0)) -> - | G7: =IF(ISNA(E7),"-",VLOOKUP(E7,'SE-690V'!$A:$K,7,0)) -> - | H7: =OFFSET('NH1-3-690V'!$A$5,0,MATCH(A$2,'NH1-3-690V'!$B$24:$R$24,-1)) -> 500 | I7: =OFFSET('NH1-3-690V'!$A$5,0,MATCH(B$2,'NH1-3-690V'!$B$27:$R$27,-1)) -> 25 | J7: =OFFSET('NH1-3-690V'!$A$5,0,MATCH(C$2,'NH1-3-690V'!$B$30:$R$30,-1)) -> 25 | K7: =MAX(H7:J7) -> 500 | L7: =IF(ISNA(K7),"-",VLOOKUP(K7,'SE-690V'!$A:$K,3,0)) -> - | M7: =IF(ISNA(K7),"-",VLOOKUP(K7,'SE-690V'!$A:$K,8,0)) -> - | N7: =OFFSET('NH1-3-690V'!$A$5,0,MATCH(A$2,'NH1-3-690V'!$B$24:$Q$24,-1)) -> 500 | O7: =OFFSET('NH1-3-690V'!$A$5,0,MATCH(B$2,'NH1-3-690V'!$B$27:$Q$27,-1)) -> 35 | P7: =OFFSET('NH1-3-690V'!$A$5,0,MATCH(C$2,'NH1-3-690V'!$B$30:$Q$30,-1)) -> 35 | Q7: =MAX(N7:P7) -> 500 | R7: =IF(ISNA(Q7),"-",VLOOKUP(Q7,'SE-690V'!$A:$K,4,0)) -> - | S7: =IF(ISNA(Q7),"-",VLOOKUP(Q7,'SE-690V'!$A:$K,9,0)) -> - | T7: =OFFSET('NH1-3-690V'!$A$5,0,MATCH(A$2,'NH1-3-690V'!$B$24:$Q$24,-1)) -> 500 | U7: =OFFSET('NH1-3-690V'!$A$5,0,MATCH(B$2,'NH1-3-690V'!$B$27:$Q$27,-1)) -> 35 | V7: =OFFSET('NH1-3-690V'!$A$5,0,MATCH(C$2,'NH1-3-690V'!$B$30:$Q$30,-1)) -> 35 | W7: =MAX(T7:V7) -> 500 | X7: =IF(ISNA(W7),"-",VLOOKUP(W7,'SE-690V'!$A:$K,5,0)) -> R3286600 | Y7: =IF(ISNA(W7),"-",VLOOKUP(W7,'SE-690V'!$A:$K,10,0)) -> R3286604 | Z7: - | AA7: - | AB7: - | AC7: - | AD7: - | AE7: -
A8: 700V | B8: =OFFSET('NH00C-690V'!$A$5,0,MATCH(A$2,'NH00C-690V'!$B$24:$M$24,-1)) ->  | C8: =OFFSET('NH00C-690V'!$A$5,0,MATCH(B$2,'NH00C-690V'!$B$27:$M$27,-1)) -> 10 | D8: =OFFSET('NH00C-690V'!$A$5,0,MATCH(C$2,'NH00C-690V'!$B$30:$M$30,-1)) -> 10 | F8: =IF(ISNA(E8),"-",VLOOKUP(E8,'SE-DC700V'!$A:$K,2,0)) -> - | G8: =IF(ISNA(E8),"-",VLOOKUP(E8,'SE-DC700V'!$A:$K,7,0)) -> - | H8: =OFFSET('NH1-3-690V'!$A$5,0,MATCH(A$2,'NH1-3-690V'!$B$24:$R$24,-1)) -> 500 | I8: =OFFSET('NH1-3-690V'!$A$5,0,MATCH(B$2,'NH1-3-690V'!$B$27:$R$27,-1)) -> 25 | J8: =OFFSET('NH1-3-690V'!$A$5,0,MATCH(C$2,'NH1-3-690V'!$B$30:$R$30,-1)) -> 25 | K8: 500 | L8: =IF(ISNA(K8),"-",VLOOKUP(K8,'SE-DC700V'!$A:$K,3,0)) -> - | M8: =IF(ISNA(K8),"-",VLOOKUP(K8,'SE-DC700V'!$A:$K,8,0)) -> - | N8: =OFFSET('NH1-3-690V'!$A$5,0,MATCH(A$2,'NH1-3-690V'!$B$24:$Q$24,-1)) -> 500 | O8: =OFFSET('NH1-3-690V'!$A$5,0,MATCH(B$2,'NH1-3-690V'!$B$27:$Q$27,-1)) -> 35 | P8: =OFFSET('NH1-3-690V'!$A$5,0,MATCH(C$2,'NH1-3-690V'!$B$30:$Q$30,-1)) -> 35 | Q8: 500 | R8: =IF(ISNA(Q8),"-",VLOOKUP(Q8,'SE-DC700V'!$A:$K,4,0)) -> - | S8: =IF(ISNA(Q8),"-",VLOOKUP(Q8,'SE-DC700V'!$A:$K,9,0)) -> - | T8: =OFFSET('NH1-3-690V'!$A$5,0,MATCH(A$2,'NH1-3-690V'!$B$24:$Q$24,-1)) -> 500 | U8: =OFFSET('NH1-3-690V'!$A$5,0,MATCH(B$2,'NH1-3-690V'!$B$27:$Q$27,-1)) -> 35 | V8: =OFFSET('NH1-3-690V'!$A$5,0,MATCH(C$2,'NH1-3-690V'!$B$30:$Q$30,-1)) -> 35 | W8: 500 | X8: =IF(ISNA(W8),"-",VLOOKUP(W8,'SE-DC700V'!$A:$K,5,0)) -> R3236602 | Y8: =IF(ISNA(W8),"-",VLOOKUP(W8,'SE-DC700V'!$A:$K,10,0)) -> R3236603 | Z8: - | AA8: - | AB8: - | AC8: - | AD8: - | AE8: -
A9: 800V | B9: =OFFSET('NH00C-690V'!$A$5,0,MATCH(A$2,'NH00C-690V'!$B$24:$M$24,-1)) ->  | C9: =OFFSET('NH00C-690V'!$A$5,0,MATCH(B$2,'NH00C-690V'!$B$27:$M$27,-1)) -> 10 | D9: =OFFSET('NH00C-690V'!$A$5,0,MATCH(C$2,'NH00C-690V'!$B$30:$M$30,-1)) -> 10 | F9: =IF(ISNA(E9),"-",VLOOKUP(E9,'SE-DC800V'!$A:$K,2,0)) -> - | G9: =IF(ISNA(E9),"-",VLOOKUP(E9,'SE-DC800V'!$A:$K,7,0)) -> - | H9: =OFFSET('NH1-3-690V'!$A$5,0,MATCH(A$2,'NH1-3-690V'!$B$24:$R$24,-1)) -> 500 | I9: =OFFSET('NH1-3-690V'!$A$5,0,MATCH(B$2,'NH1-3-690V'!$B$27:$R$27,-1)) -> 25 | J9: =OFFSET('NH1-3-690V'!$A$5,0,MATCH(C$2,'NH1-3-690V'!$B$30:$R$30,-1)) -> 25 | K9: 500 | L9: =IF(ISNA(K9),"-",VLOOKUP(K9,'SE-DC800V'!$A:$K,3,0)) -> - | M9: =IF(ISNA(K9),"-",VLOOKUP(K9,'SE-DC800V'!$A:$K,8,0)) -> - | N9: =OFFSET('NH1-3-690V'!$A$5,0,MATCH(A$2,'NH1-3-690V'!$B$24:$Q$24,-1)) -> 500 | O9: =OFFSET('NH1-3-690V'!$A$5,0,MATCH(B$2,'NH1-3-690V'!$B$27:$Q$27,-1)) -> 35 | P9: =OFFSET('NH1-3-690V'!$A$5,0,MATCH(C$2,'NH1-3-690V'!$B$30:$Q$30,-1)) -> 35 | Q9: 500 | R9: =IF(ISNA(Q9),"-",VLOOKUP(Q9,'SE-DC800V'!$A:$K,4,0)) -> - | S9: =IF(ISNA(Q9),"-",VLOOKUP(Q9,'SE-DC800V'!$A:$K,9,0)) -> - | T9: =OFFSET('NH1-3-690V'!$A$5,0,MATCH(A$2,'NH1-3-690V'!$B$24:$Q$24,-1)) -> 500 | U9: =OFFSET('NH1-3-690V'!$A$5,0,MATCH(B$2,'NH1-3-690V'!$B$27:$Q$27,-1)) -> 35 | V9: =OFFSET('NH1-3-690V'!$A$5,0,MATCH(C$2,'NH1-3-690V'!$B$30:$Q$30,-1)) -> 35 | W9: 500 | X9: =IF(ISNA(W9),"-",VLOOKUP(W9,'SE-DC800V'!$A:$K,5,0)) -> - | Y9: =IF(ISNA(W9),"-",VLOOKUP(W9,'SE-DC800V'!$A:$K,10,0)) -> - | Z9: - | AA9: - | AB9: - | AC9: - | AD9: - | AE9: -
A10: - | B10: - | C10: - | D10: - | E10: - | F10: - | G10: - | H10: - | I10: - | J10: - | K10: - | L10: - | M10: - | N10: - | O10: - | P10: - | Q10: - | R10: - | S10: - | T10: - | U10: - | V10: - | W10: - | X10: - | Y10: - | Z10: - | AA10: - | AB10: - | AC10: - | AD10: - | AE10: -
A13: max. Entladestrom 50% | B13: Überlast 1 | C13: Überlast 2
A14: =A2/2 -> 285.71 | B14: =B2/2 -> 0.00 | C14: 0.00
B15: 2xNH000 | H15: 2xNH1 | N15: 2xNH2 | T15: NH3 | Z15: NH4a
B16: Entladung | C16: Überlast 1 | D16: Überlast 2 | E16: Max. | F16: Standard | G16: /K | H16: Entladung | I16: Überlast 1 | J16: Überlast 2 | K16: Max. | L16: Standard | M16: /K | N16: Entladung | O16: Überlast 1 | P16: Überlast 2 | Q16: Max. | R16: Standard | S16: /K | T16: Entladung | U16: Überlast 1 | V16: Überlast 2 | W16: Max. | X16: Standard | Y16: /K | Z16: Entladung | AA16: Überlast 1 | AB16: Überlast 2 | AC16: Max. | AD16: Standard | AE16: /K
A17: 500V | B17: =OFFSET('NH00C-500V'!$A$5,0,MATCH(A$14,'NH00C-500V'!$B$24:$O$24,-1)) ->  | C17: =OFFSET('NH00C-500V'!$A$5,0,MATCH(B$14,'NH00C-500V'!$B$27:$O$27,-1)) -> 6 | D17: =OFFSET('NH00C-500V'!$A$5,0,MATCH(C$14,'NH00C-500V'!$B$30:$O$30,-1)) -> 6 | E17: =MAX(B17:D17) ->  | F17: =IF(ISNA(E17),"-",VLOOKUP(E17,'SE-500V'!$A:$K,2,0)) -> - | G17: =IF(ISNA(E17),"-",VLOOKUP(E17,'SE-500V'!$A:$K,7,0)) -> - | H17: =OFFSET('NH1-4a-500V'!$A$5,0,MATCH(A$14,'NH1-4a-500V'!$B$24:$V$24,-1)) -> 315 | I17: =OFFSET('NH1-4a-500V'!$A$5,0,MATCH(B$14,'NH1-4a-500V'!$B$27:$V$27,-1)) -> 35 | J17: =OFFSET('NH1-4a-500V'!$A$5,0,MATCH(C$14,'NH1-4a-500V'!$B$30:$V$30,-1)) -> 35 | K17: =MAX(H17:J17) -> 315 | L17: =IF(OR(ISNA(K17),K17<315),"-",VLOOKUP(K17,'SE-500V'!$A:$K,3,0)) -> - | M17: =IF(OR(ISNA(K17),K17<315),"-",VLOOKUP(K17,'SE-500V'!$A:$K,8,0)) -> - | N17: =OFFSET('NH1-4a-500V'!$A$5,0,MATCH(A$14,'NH1-4a-500V'!$B$24:$V$24,-1)) -> 315 | O17: =OFFSET('NH1-4a-500V'!$A$5,0,MATCH(B$14,'NH1-4a-500V'!$B$27:$V$27,-1)) -> 35 | P17: =OFFSET('NH1-4a-500V'!$A$5,0,MATCH(C$14,'NH1-4a-500V'!$B$30:$V$30,-1)) -> 35 | Q17: =MAX(N17:P17) -> 315 | R17: =IF(OR(ISNA(Q17),Q17<315),"-",VLOOKUP(Q17,'SE-500V'!$A:$K,4,0)) -> R2215900 | S17: =IF(OR(ISNA(Q17),Q17<315),"-",VLOOKUP(Q17,'SE-500V'!$A:$K,9,0)) -> R2215904 | T17: =OFFSET('NH1-4a-500V'!$A$5,0,MATCH(A$14,'NH1-4a-500V'!$B$24:$V$24,-1)) -> 315 | U17: =OFFSET('NH1-4a-500V'!$A$5,0,MATCH(B$14,'NH1-4a-500V'!$B$27:$V$27,-1)) -> 35 | V17: =OFFSET('NH1-4a-500V'!$A$5,0,MATCH(C$14,'NH1-4a-500V'!$B$30:$V$30,-1)) -> 35 | W17: =MAX(T17:V17) -> 315 | X17: =IF(OR(ISNA(W17),W17<315),"-",VLOOKUP(W17,'SE-500V'!$A:$K,5,0)) -> R3215900 | Y17: =IF(OR(ISNA(W17),W17<315),"-",VLOOKUP(W17,'SE-500V'!$A:$K,10,0)) -> R3215904 | Z17: =OFFSET('NH1-4a-500V'!$A$5,0,MATCH(A$14,'NH1-4a-500V'!$B$24:$V$24,-1)) -> 315 | AA17: =OFFSET('NH1-4a-500V'!$A$5,0,MATCH(B$14,'NH1-4a-500V'!$B$27:$V$27,-1)) -> 35 | AB17: =OFFSET('NH1-4a-500V'!$A$5,0,MATCH(C$14,'NH1-4a-500V'!$B$30:$V$30,-1)) -> 35 | AC17: =MAX(Z17:AB17) -> 315 | AD17: =IF(OR(ISNA(AC17),AC17<315),"-",VLOOKUP(AC17,'SE-500V'!$A:$K,6,0)) -> - | AE17: =IF(OR(ISNA(AC17),AC17<315),"-",VLOOKUP(AC17,'SE-500V'!$A:$K,11,0)) -> -
A18: 690V | B18: =OFFSET('NH00C-690V'!$A$5,0,MATCH(A$14,'NH00C-690V'!$B$24:$M$24,-1)) ->  | C18: =OFFSET('NH00C-690V'!$A$5,0,MATCH(B$14,'NH00C-690V'!$B$27:$M$27,-1)) -> 10 | D18: =OFFSET('NH00C-690V'!$A$5,0,MATCH(C$14,'NH00C-690V'!$B$30:$M$30,-1)) -> 10 | E18: =MAX(B18:D18) ->  | F18: =IF(ISNA(E18),"-",VLOOKUP(E18,'SE-690V'!$A:$K,2,0)) -> - | G18: =IF(ISNA(E18),"-",VLOOKUP(E18,'SE-690V'!$A:$K,7,0)) -> - | H18: =OFFSET('NH1-3-690V'!$A$5,0,MATCH(A$14,'NH1-3-690V'!$B$24:$R$24,-1)) -> 250 | I18: =OFFSET('NH1-3-690V'!$A$5,0,MATCH(B$14,'NH1-3-690V'!$B$27:$R$27,-1)) -> 25 | J18: =OFFSET('NH1-3-690V'!$A$5,0,MATCH(C$14,'NH1-3-690V'!$B$30:$R$30,-1)) -> 25 | K18: =MAX(H18:J18) -> 250 | L18: =IF(OR(ISNA(K18),K18<315),"-",VLOOKUP(K18,'SE-690V'!$A:$K,3,0)) -> - | M18: =IF(OR(ISNA(K18),K18<315),"-",VLOOKUP(K18,'SE-690V'!$A:$K,8,0)) -> - | N18: =OFFSET('NH1-3-690V'!$A$5,0,MATCH(A$14,'NH1-3-690V'!$B$24:$Q$24,-1)) -> 250 | O18: =OFFSET('NH1-3-690V'!$A$5,0,MATCH(B$14,'NH1-3-690V'!$B$27:$Q$27,-1)) -> 35 | P18: =OFFSET('NH1-3-690V'!$A$5,0,MATCH(C$14,'NH1-3-690V'!$B$30:$Q$30,-1)) -> 35 | Q18: =MAX(N18:P18) -> 250 | R18: =IF(OR(ISNA(Q18),Q18<315),"-",VLOOKUP(Q18,'SE-690V'!$A:$K,4,0)) -> - | S18: =IF(OR(ISNA(Q18),Q18<315),"-",VLOOKUP(Q18,'SE-690V'!$A:$K,9,0)) -> - | T18: =OFFSET('NH1-3-690V'!$A$5,0,MATCH(A$14,'NH1-3-690V'!$B$24:$Q$24,-1)) -> 250 | U18: =OFFSET('NH1-3-690V'!$A$5,0,MATCH(B$14,'NH1-3-690V'!$B$27:$Q$27,-1)) -> 35 | V18: =OFFSET('NH1-3-690V'!$A$5,0,MATCH(C$14,'NH1-3-690V'!$B$30:$Q$30,-1)) -> 35 | W18: =MAX(T18:V18) -> 250 | X18: =IF(OR(ISNA(W18),W18<315),"-",VLOOKUP(W18,'SE-690V'!$A:$K,5,0)) -> - | Y18: =IF(OR(ISNA(W18),W18<315),"-",VLOOKUP(W18,'SE-690V'!$A:$K,10,0)) -> - | Z18: - | AA18: - | AB18: - | AC18: - | AD18: - | AE18: -
A19: 700V | B19: =OFFSET('NH00C-690V'!$A$5,0,MATCH(A$14,'NH00C-690V'!$B$24:$M$24,-1)) ->  | C19: =OFFSET('NH00C-690V'!$A$5,0,MATCH(B$14,'NH00C-690V'!$B$27:$M$27,-1)) -> 10 | D19: =OFFSET('NH00C-690V'!$A$5,0,MATCH(C$14,'NH00C-690V'!$B$30:$M$30,-1)) -> 10 | F19: =IF(ISNA(E19),"-",VLOOKUP(E19,'SE-DC700V'!$A:$K,2,0)) -> - | G19: =IF(ISNA(E19),"-",VLOOKUP(E19,'SE-DC700V'!$A:$K,7,0)) -> - | H19: =OFFSET('NH1-3-690V'!$A$5,0,MATCH(A$14,'NH1-3-690V'!$B$24:$R$24,-1)) -> 250 | I19: =OFFSET('NH1-3-690V'!$A$5,0,MATCH(B$14,'NH1-3-690V'!$B$27:$R$27,-1)) -> 25 | J19: =OFFSET('NH1-3-690V'!$A$5,0,MATCH(C$14,'NH1-3-690V'!$B$30:$R$30,-1)) -> 25 | K19: 250 | L19: =IF(OR(ISNA(K19),K19<315),"-",VLOOKUP(K19,'SE-DC700V'!$A:$K,3,0)) -> - | M19: =IF(OR(ISNA(K19),K19<315),"-",VLOOKUP(K19,'SE-DC700V'!$A:$K,8,0)) -> - | N19: =OFFSET('NH1-3-690V'!$A$5,0,MATCH(A$14,'NH1-3-690V'!$B$24:$Q$24,-1)) -> 250 | O19: =OFFSET('NH1-3-690V'!$A$5,0,MATCH(B$14,'NH1-3-690V'!$B$27:$Q$27,-1)) -> 35 | P19: =OFFSET('NH1-3-690V'!$A$5,0,MATCH(C$14,'NH1-3-690V'!$B$30:$Q$30,-1)) -> 35 | Q19: 250 | R19: =IF(OR(ISNA(Q19),Q19<315),"-",VLOOKUP(Q19,'SE-DC700V'!$A:$K,4,0)) -> - | S19: =IF(OR(ISNA(Q19),Q19<315),"-",VLOOKUP(Q19,'SE-DC700V'!$A:$K,9,0)) -> - | T19: =OFFSET('NH1-3-690V'!$A$5,0,MATCH(A$14,'NH1-3-690V'!$B$24:$Q$24,-1)) -> 250 | U19: =OFFSET('NH1-3-690V'!$A$5,0,MATCH(B$14,'NH1-3-690V'!$B$27:$Q$27,-1)) -> 35 | V19: =OFFSET('NH1-3-690V'!$A$5,0,MATCH(C$14,'NH1-3-690V'!$B$30:$Q$30,-1)) -> 35 | W19: 250 | X19: =IF(OR(ISNA(W19),W19<315),"-",VLOOKUP(W19,'SE-DC700V'!$A:$K,5,0)) -> - | Y19: =IF(OR(ISNA(W19),W19<315),"-",VLOOKUP(W19,'SE-DC700V'!$A:$K,10,0)) -> - | Z19: - | AA19: - | AB19: - | AC19: - | AD19: - | AE19: -
A20: 800V | B20: =OFFSET('NH00C-690V'!$A$5,0,MATCH(A$14,'NH00C-690V'!$B$24:$M$24,-1)) ->  | C20: =OFFSET('NH00C-690V'!$A$5,0,MATCH(B$14,'NH00C-690V'!$B$27:$M$27,-1)) -> 10 | D20: =OFFSET('NH00C-690V'!$A$5,0,MATCH(C$14,'NH00C-690V'!$B$30:$M$30,-1)) -> 10 | F20: =IF(ISNA(E20),"-",VLOOKUP(E20,'SE-DC800V'!$A:$K,2,0)) -> - | G20: =IF(ISNA(E20),"-",VLOOKUP(E20,'SE-DC800V'!$A:$K,7,0)) -> - | H20: =OFFSET('NH1-3-690V'!$A$5,0,MATCH(A$14,'NH1-3-690V'!$B$24:$R$24,-1)) -> 250 | I20: =OFFSET('NH1-3-690V'!$A$5,0,MATCH(B$14,'NH1-3-690V'!$B$27:$R$27,-1)) -> 25 | J20: =OFFSET('NH1-3-690V'!$A$5,0,MATCH(C$14,'NH1-3-690V'!$B$30:$R$30,-1)) -> 25 | K20: 250 | L20: =IF(OR(ISNA(K20),K20<315),"-",VLOOKUP(K20,'SE-DC800V'!$A:$K,3,0)) -> - | M20: =IF(OR(ISNA(K20),K20<315),"-",VLOOKUP(K20,'SE-DC800V'!$A:$K,8,0)) -> - | N20: =OFFSET('NH1-3-690V'!$A$5,0,MATCH(A$14,'NH1-3-690V'!$B$24:$Q$24,-1)) -> 250 | O20: =OFFSET('NH1-3-690V'!$A$5,0,MATCH(B$14,'NH1-3-690V'!$B$27:$Q$27,-1)) -> 35 | P20: =OFFSET('NH1-3-690V'!$A$5,0,MATCH(C$14,'NH1-3-690V'!$B$30:$Q$30,-1)) -> 35 | Q20: 250 | R20: =IF(OR(ISNA(Q20),Q20<315),"-",VLOOKUP(Q20,'SE-DC800V'!$A:$K,4,0)) -> - | S20: =IF(OR(ISNA(Q20),Q20<315),"-",VLOOKUP(Q20,'SE-DC800V'!$A:$K,9,0)) -> - | T20: =OFFSET('NH1-3-690V'!$A$5,0,MATCH(A$14,'NH1-3-690V'!$B$24:$Q$24,-1)) -> 250 | U20: =OFFSET('NH1-3-690V'!$A$5,0,MATCH(B$14,'NH1-3-690V'!$B$27:$Q$27,-1)) -> 35 | V20: =OFFSET('NH1-3-690V'!$A$5,0,MATCH(C$14,'NH1-3-690V'!$B$30:$Q$30,-1)) -> 35 | W20: 250 | X20: =IF(OR(ISNA(W20),W20<315),"-",VLOOKUP(W20,'SE-DC800V'!$A:$K,5,0)) -> - | Y20: =IF(OR(ISNA(W20),W20<315),"-",VLOOKUP(W20,'SE-DC800V'!$A:$K,10,0)) -> - | Z20: - | AA20: - | AB20: - | AC20: - | AD20: - | AE20: -
A21: - | B21: - | C21: - | D21: - | E21: - | F21: - | G21: - | H21: - | I21: - | J21: - | K21: - | L21: - | M21: - | N21: - | O21: - | P21: - | Q21: - | R21: - | S21: - | T21: - | U21: - | V21: - | W21: - | X21: - | Y21: - | Z21: - | AA21: - | AB21: - | AC21: - | AD21: - | AE21: -

Sheet NH00C-500V (hidden)
A3: NH00C/500V-uf2
A5: (s) | B5: 160 | C5: 125 | D5: 100 | E5: 80 | F5: 63 | G5: 50 | H5: 40 | I5: 35 | J5: 32 | K5: 25 | L5: 20 | M5: 16 | N5: 10 | O5: 6
A6: 10 | B6: 355 | C6: 300 | D6: 235 | E6: 190 | F6: 135 | G6: 115 | H6: 105 | I6: 86 | J6: 73 | K6: 42 | L6: 33 | M6: 26 | N6: 23.5 | O6: 22
A7: 60 | B7: 255 | C7: 220 | D7: 175 | E7: 130 | F7: 107 | G7: 83 | H7: 75 | I7: 62.5 | J7: 53 | K7: 36 | L7: 30 | M7: 23 | N7: 22 | O7: 21
A8: 120 | B8: 230 | C8: 200 | D8: 155 | E8: 121 | F8: 96 | G8: 75 | H8: 68 | I8: 56 | J8: 50 | K8: 34.5 | L8: 29 | M8: 22.5 | N8: 21.5 | O8: 20
A9: 180 | B9: 223 | C9: 190 | D9: 145 | E9: 119 | F9: 92 | G9: 71 | H9: 63 | I9: 53 | J9: 46 | K9: 34 | L9: 28 | M9: 22 | N9: 21 | O9: 19.5
A10: 240 | B10: 220 | C10: 180 | D10: 140 | E10: 118 | F10: 90 | G10: 69 | H10: 62 | I10: 52 | J10: 44 | K10: 33.5 | L10: 27.5 | M10: 22 | N10: 20.5 | O10: 19
A11: 300 | B11: 217 | C11: 175 | D11: 138 | E11: 115 | F11: 87 | G11: 67 | H11: 61 | I11: 51 | J11: 43 | K11: 33 | L11: 27 | M11: 22 | N11: 20 | O11: 18
A12: 600 | B12: 208 | C12: 160 | D12: 130 | E12: 110 | F12: 82 | G12: 63 | H12: 57 | I12: 47.5 | J12: 41.5 | K12: 32 | L12: 25.5 | M12: 21.5 | N12: 19.5 | O12: 17
A13: 900 | B13: 202 | C13: 155 | D13: 129 | E13: 108 | F13: 80 | G13: 62 | H13: 55 | I13: 46.5 | J13: 41 | K13: 32 | L13: 25 | M13: 21.5 | N13: 19 | O13: 17
A14: 1200 | B14: 200 | C14: 152 | D14: 128 | E14: 105 | F14: 79 | G14: 61.5 | H14: 55 | I14: 45 | J14: 40 | K14: 32 | L14: 25 | M14: 21.5 | N14: 18.5 | O14: 17
A15: 1800 | B15: 199 | C15: 150 | D15: 126 | E15: 102 | F15: 77 | G15: 61 | H15: 53.5 | I15: 44.5 | J15: 39.5 | K15: 32 | L15: 24.5 | M15: 21 | N15: 18.5 | O15: 17
A16: 2400 | B16: 197 | C16: 150 | D16: 126 | E16: 100 | F16: 77 | G16: 60 | H16: 53.5 | I16: 44 | J16: 39 | K16: 32 | L16: 24.5 | M16: 21 | N16: 18.5 | O16: 16.5
A17: 3000 | B17: 195 | C17: 149 | D17: 125 | E17: 100 | F17: 76 | G17: 60 | H17: 53 | I17: 44 | J17: 39 | K17: 31.5 | L17: 24 | M17: 21 | N17: 18.5 | O17: 16.5
A18: 3600 | B18: 193 | C18: 148 | D18: 125 | E18: 100 | F18: 75 | G18: 60 | H18: 53 | I18: 43.5 | J18: 38 | K18: 31.5 | L18: 24 | M18: 21 | N18: 18 | O18: 16.5
A19: 5400 | B19: 190 | C19: 145 | D19: 123 | E19: 97 | F19: 74 | G19: 58 | H19: 52.5 | I19: 43 | J19: 37.5 | K19: 31.5 | L19: 24 | M19: 21 | N19: 18 | O19: 16
A20: 7200 | B20: 188 | C20: 144 | D20: 122 | E20: 96 | F20: 74 | G20: 58 | H20: 52 | I20: 43 | J20: 37 | K20: 31 | L20: 24 | M20: 20 | N20: 17.5 | O20: 16
A21: 9000 | B21: 185 | C21: 143 | D21: 121 | E21: 96 | F21: 73 | G21: 58 | H21: 52 | I21: 42.5 | J21: 36.5 | K21: 30.5 | L21: 23.5 | M21: 20 | N21: 17.5 | O21: 15.5
A23: =USV!J22*60 -> 900 | B23: =(OFFSET(B$5,IF($A23>$A$21,0,$A24),0)+OFFSET(B$5,IF($A23>$A$21,0,$A24+1),0))/2 -> 201.00 | C23: =(OFFSET(C$5,IF($A23>$A$21,0,$A24),0)+OFFSET(C$5,IF($A23>$A$21,0,$A24+1),0))/2 -> 153.50 | D23: 128.50 | E23: 106.50 | F23: 79.50 | G23: 61.75 | H23: 55.00 | I23: 45.75 | J23: 40.50 | K23: 32.00 | L23: 25.00 | M23: 21.50 | N23: 18.75 | O23: 17.00
A24: =MATCH($A23,$A$6:A21,1) -> 8 | B24: =B23*IF($A23>$A$21,1,0.85) -> 170.85 | C24: =C23*IF($A23>$A$21,1,0.85) -> 130.48 | D24: 109.23 | E24: 90.53 | F24: 67.58 | G24: 52.49 | H24: 46.75 | I24: 38.89 | J24: 34.43 | K24: 27.20 | L24: 21.25 | M24: 18.28 | N24: 15.94 | O24: 14.45
A26: =USV!M24*60 -> 600 | B26: =(OFFSET(B$5,IF($A26>$A$21,0,$A27),0)+OFFSET(B$5,IF($A26>$A$21,0,$A27+1),0))/2 -> 205.00 | C26: =(OFFSET(C$5,IF($A26>$A$21,0,$A27),0)+OFFSET(C$5,IF($A26>$A$21,0,$A27+1),0))/2 -> 157.50 | D26: =(OFFSET(D$5,IF($A26>$A$21,0,$A27),0)+OFFSET(D$5,IF($A26>$A$21,0,$A27+1),0))/2 -> 129.50 | E26: =(OFFSET(E$5,IF($A26>$A$21,0,$A27),0)+OFFSET(E$5,IF($A26>$A$21,0,$A27+1),0))/2 -> 109.00 | F26: =(OFFSET(F$5,IF($A26>$A$21,0,$A27),0)+OFFSET(F$5,IF($A26>$A$21,0,$A27+1),0))/2 -> 81.00 | G26: =(OFFSET(G$5,IF($A26>$A$21,0,$A27),0)+OFFSET(G$5,IF($A26>$A$21,0,$A27+1),0))/2 -> 62.50 | H26: =(OFFSET(H$5,IF($A26>$A$21,0,$A27),0)+OFFSET(H$5,IF($A26>$A$21,0,$A27+1),0))/2 -> 56.00 | I26: =(OFFSET(I$5,IF($A26>$A$21,0,$A27),0)+OFFSET(I$5,IF($A26>$A$21,0,$A27+1),0))/2 -> 47.00 | J26: =(OFFSET(J$5,IF($A26>$A$21,0,$A27),0)+OFFSET(J$5,IF($A26>$A$21,0,$A27+1),0))/2 -> 41.25 | K26: =(OFFSET(K$5,IF($A26>$A$21,0,$A27),0)+OFFSET(K$5,IF($A26>$A$21,0,$A27+1),0))/2 -> 32.00 | L26: =(OFFSET(L$5,IF($A26>$A$21,0,$A27),0)+OFFSET(L$5,IF($A26>$A$21,0,$A27+1),0))/2 -> 25.25 | M26: =(OFFSET(M$5,IF($A26>$A$21,0,$A27),0)+OFFSET(M$5,IF($A26>$A$21,0,$A27+1),0))/2 -> 21.50 | N26: =(OFFSET(N$5,IF($A26>$A$21,0,$A27),0)+OFFSET(N$5,IF($A26>$A$21,0,$A27+1),0))/2 -> 19.25 | O26: =(OFFSET(O$5,IF($A26>$A$21,0,$A27),0)+OFFSET(O$5,IF($A26>$A$21,0,$A27+1),0))/2 -> 17.00
A27: =MATCH($A26,$A$6:A24,1) -> 7 | B27: =B26*IF($A26>$A$21,1,0.85) -> 174.25 | C27: =C26*IF($A26>$A$21,1,0.85) -> 133.88 | D27: =D26*IF($A26>$A$21,1,0.85) -> 110.08 | E27: =E26*IF($A26>$A$21,1,0.85) -> 92.65 | F27: =F26*IF($A26>$A$21,1,0.85) -> 68.85 | G27: =G26*IF($A26>$A$21,1,0.85) -> 53.13 | H27: =H26*IF($A26>$A$21,1,0.85) -> 47.60 | I27: =I26*IF($A26>$A$21,1,0.85) -> 39.95 | J27: =J26*IF($A26>$A$21,1,0.85) -> 35.06 | K27: =K26*IF($A26>$A$21,1,0.85) -> 27.20 | L27: =L26*IF($A26>$A$21,1,0.85) -> 21.46 | M27: =M26*IF($A26>$A$21,1,0.85) -> 18.28 | N27: =N26*IF($A26>$A$21,1,0.85) -> 16.36 | O27: =O26*IF($A26>$A$21,1,0.85) -> 14.45
A29: =USV!O24*60 -> 60 | B29: =(OFFSET(B$5,IF($A29>$A$21,0,$A30),0)+OFFSET(B$5,IF($A29>$A$21,0,$A30+1),0))/2 -> 242.50 | C29: =(OFFSET(C$5,IF($A29>$A$21,0,$A30),0)+OFFSET(C$5,IF($A29>$A$21,0,$A30+1),0))/2 -> 210.00 | D29: =(OFFSET(D$5,IF($A29>$A$21,0,$A30),0)+OFFSET(D$5,IF($A29>$A$21,0,$A30+1),0))/2 -> 165.00 | E29: =(OFFSET(E$5,IF($A29>$A$21,0,$A30),0)+OFFSET(E$5,IF($A29>$A$21,0,$A30+1),0))/2 -> 125.50 | F29: =(OFFSET(F$5,IF($A29>$A$21,0,$A30),0)+OFFSET(F$5,IF($A29>$A$21,0,$A30+1),0))/2 -> 101.50 | G29: =(OFFSET(G$5,IF($A29>$A$21,0,$A30),0)+OFFSET(G$5,IF($A29>$A$21,0,$A30+1),0))/2 -> 79.00 | H29: =(OFFSET(H$5,IF($A29>$A$21,0,$A30),0)+OFFSET(H$5,IF($A29>$A$21,0,$A30+1),0))/2 -> 71.50 | I29: =(OFFSET(I$5,IF($A29>$A$21,0,$A30),0)+OFFSET(I$5,IF($A29>$A$21,0,$A30+1),0))/2 -> 59.25 | J29: =(OFFSET(J$5,IF($A29>$A$21,0,$A30),0)+OFFSET(J$5,IF($A29>$A$21,0,$A30+1),0))/2 -> 51.50 | K29: =(OFFSET(K$5,IF($A29>$A$21,0,$A30),0)+OFFSET(K$5,IF($A29>$A$21,0,$A30+1),0))/2 -> 35.25 | L29: =(OFFSET(L$5,IF($A29>$A$21,0,$A30),0)+OFFSET(L$5,IF($A29>$A$21,0,$A30+1),0))/2 -> 29.50 | M29: =(OFFSET(M$5,IF($A29>$A$21,0,$A30),0)+OFFSET(M$5,IF($A29>$A$21,0,$A30+1),0))/2 -> 22.75 | N29: =(OFFSET(N$5,IF($A29>$A$21,0,$A30),0)+OFFSET(N$5,IF($A29>$A$21,0,$A30+1),0))/2 -> 21.75 | O29: =(OFFSET(O$5,IF($A29>$A$21,0,$A30),0)+OFFSET(O$5,IF($A29>$A$21,0,$A30+1),0))/2 -> 20.50
A30: =MATCH($A29,$A$6:A27,1) -> 2 | B30: =B29*IF($A29>$A$21,1,0.85) -> 206.13 | C30: =C29*IF($A29>$A$21,1,0.85) -> 178.50 | D30: =D29*IF($A29>$A$21,1,0.85) -> 140.25 | E30: =E29*IF($A29>$A$21,1,0.85) -> 106.68 | F30: =F29*IF($A29>$A$21,1,0.85) -> 86.28 | G30: =G29*IF($A29>$A$21,1,0.85) -> 67.15 | H30: =H29*IF($A29>$A$21,1,0.85) -> 60.78 | I30: =I29*IF($A29>$A$21,1,0.85) -> 50.36 | J30: =J29*IF($A29>$A$21,1,0.85) -> 43.78 | K30: =K29*IF($A29>$A$21,1,0.85) -> 29.96 | L30: =L29*IF($A29>$A$21,1,0.85) -> 25.08 | M30: =M29*IF($A29>$A$21,1,0.85) -> 19.34 | N30: =N29*IF($A29>$A$21,1,0.85) -> 18.49 | O30: =O29*IF($A29>$A$21,1,0.85) -> 17.43

Sheet NH1-4a-500V (hidden)
A3: NH1-3/500V-uf2
W4: NH000
A5: (s) | B5: 1500 | C5: 1250 | D5: 1000 | E5: 800 | F5: 630 | G5: 500 | H5: 425 | I5: 400 | J5: 350 | K5: 315 | L5: 250 | M5: 224 | N5: 200 | O5: 160 | P5: 125 | Q5: 100 | R5: 80 | S5: 63 | T5: 50 | U5: 40 | V5: 35 | W5: 25
A6: 10 | B6: 4371 | C6: 3491 | D6: 2788 | E6: 2227 | F6: 1600 | G6: 1220 | H6: 1050 | I6: 1000 | J6: 820 | K6: 710 | L6: 610 | M6: 520 | N6: 430 | O6: 340 | P6: 290 | Q6: 230 | R6: 175 | S6: 133 | T6: 115 | U6: 96 | V6: 82.5 | W6: 42
A7: 60 | B7: 3191 | C7: 2548 | D7: 2035 | E7: 1625 | F7: 1190 | G7: 925 | H7: 800 | I7: 720 | J7: 615 | K7: 525 | L7: 435 | M7: 380 | N7: 320 | O7: 250 | P7: 215 | Q7: 165 | R7: 128 | S7: 105 | T7: 82 | U7: 71 | V7: 62 | W7: 36
A8: 120 | B8: 2852 | C8: 2277 | D8: 1819 | E8: 1452 | F8: 1100 | G8: 840 | H8: 720 | I8: 660 | J8: 550 | K8: 480 | L8: 410 | M8: 340 | N8: 300 | O8: 230 | P8: 200 | Q8: 151 | R8: 121 | S8: 95 | T8: 74.5 | U8: 64.5 | V8: 55 | W8: 34.5
A9: 180 | B9: 2666 | C9: 2129 | D9: 1700 | E9: 1358 | F9: 1050 | G9: 800 | H9: 690 | I9: 625 | J9: 525 | K9: 445 | L9: 380 | M9: 325 | N9: 280 | O9: 222 | P9: 185 | Q9: 141 | R9: 118 | S9: 90 | T9: 72 | U9: 62 | V9: 52.5 | W9: 34
A10: 240 | B10: 2548 | C10: 2035 | D10: 1625 | E10: 1298 | F10: 1000 | G10: 775 | H10: 670 | I10: 617 | J10: 517 | K10: 437 | L10: 365 | M10: 321 | N10: 270 | O10: 220 | P10: 178 | Q10: 140 | R10: 117 | S10: 88 | T10: 70 | U10: 61 | V10: 52 | W10: 33.5
A11: 300 | B11: 2436 | C11: 1946 | D11: 1554 | E11: 1241 | F11: 960 | G11: 750 | H11: 650 | I11: 600 | J11: 505 | K11: 430 | L11: 355 | M11: 317 | N11: 260 | O11: 217 | P11: 171 | Q11: 135 | R11: 115 | S11: 85 | T11: 68 | U11: 59 | V11: 51.5 | W11: 33
A12: 600 | B12: 2227 | C12: 1778 | D12: 1420 | E12: 1134 | F12: 900 | G12: 720 | H12: 620 | I12: 570 | J12: 470 | K12: 415 | L12: 335 | M12: 305 | N12: 241 | O12: 203 | P12: 160 | Q12: 130 | R12: 109 | S12: 81.5 | T12: 63.5 | U12: 55 | V12: 48 | W12: 32
A13: 900 | B13: 2129 | C13: 1700 | D13: 1358 | E13: 1084 | F13: 860 | G13: 700 | H13: 610 | I13: 545 | J13: 450 | K13: 405 | L13: 330 | M13: 298 | N13: 239 | O13: 200 | P13: 154 | Q13: 129 | R13: 107 | S13: 80 | T13: 62 | U13: 53.5 | V13: 46 | W13: 32
A14: 1200 | B14: 2081 | C14: 1662 | D14: 1328 | E14: 1060 | F14: 850 | G14: 690 | H14: 600 | I14: 540 | J14: 445 | K14: 400 | L14: 325 | M14: 290 | N14: 235 | O14: 200 | P14: 153 | Q14: 129 | R14: 105 | S14: 77.5 | T14: 61.5 | U14: 53 | V14: 45 | W14: 32
A15: 1800 | B15: 1990 | C15: 1589 | D15: 1269 | E15: 1014 | F15: 830 | G15: 660 | H15: 580 | I15: 527 | J15: 435 | K15: 387 | L15: 323 | M15: 277 | N15: 232 | O15: 197 | P15: 152 | Q15: 128 | R15: 102 | S15: 75.5 | T15: 60.5 | U15: 52 | V15: 44 | W15: 32
A16: 2400 | B16: 1946 | C16: 1554 | D16: 1241 | E16: 991 | F16: 820 | G16: 650 | H16: 575 | I16: 525 | J16: 433 | K16: 385 | L16: 321 | M16: 275 | N16: 230 | O16: 195 | P16: 151 | Q16: 127 | R16: 100 | S16: 75 | T16: 60 | U16: 52 | V16: 44 | W16: 32
A17: 3000 | B17: 1902 | C17: 1519 | D17: 1213 | E17: 969 | F17: 810 | G17: 640 | H17: 570 | I17: 524 | J17: 431 | K17: 380 | L17: 320 | M17: 272 | N17: 230 | O17: 191 | P17: 147 | Q17: 125 | R17: 100 | S17: 75 | T17: 60 | U17: 52 | V17: 43.5 | W17: 31.5
A18: 3600 | B18: 1885 | C18: 1506 | D18: 1202 | E18: 960 | F18: 800 | G18: 631 | H18: 570 | I18: 522 | J18: 430 | K18: 377 | L18: 320 | M18: 270 | N18: 229 | O18: 190 | P18: 146 | Q18: 125 | R18: 97 | S18: 75 | T18: 60 | U18: 52 | V18: 43.5 | W18: 31.5
A19: 5400 | B19: 1860 | C19: 1486 | D19: 1186 | E19: 947 | F19: 775 | G19: 627 | H19: 560 | I19: 520 | J19: 428 | K19: 371 | L19: 319 | M19: 268 | N19: 227 | O19: 187 | P19: 145 | Q19: 124 | R19: 96 | S19: 74 | T19: 60 | U19: 51 | V19: 43 | W19: 31.5
A20: 7200 | B20: 1835 | C20: 1466 | D20: 1170 | E20: 935 | F20: 760 | G20: 620 | H20: 555 | I20: 518 | J20: 427 | K20: 370 | L20: 318 | M20: 265 | N20: 225 | O20: 185 | P20: 143 | Q20: 123 | R20: 95 | S20: 73.5 | T20: 59 | U20: 51 | V20: 43 | W20: 31
A21: 9000 | B21: 1819 | C21: 1452 | D21: 1160 | E21: 926 | F21: 750 | G21: 615 | H21: 550 | I21: 515 | J21: 425 | K21: 365 | L21: 315 | M21: 265 | N21: 225 | O21: 185 | P21: 140 | Q21: 120 | R21: 94 | S21: 73 | T21: 58 | U21: 50 | V21: 42.5 | W21: 30.5
A23: =USV!J22*60 -> 900 | B23: =(OFFSET(B$5,IF($A23>$A$21,0,$A24),0)+OFFSET(B5,IF($A23>$A$21,0,$A24+1),0))/2 -> 2105.00 | C23: =(OFFSET(C$5,IF($A23>$A$21,0,$A24),0)+OFFSET(C5,IF($A23>$A$21,0,$A24+1),0))/2 -> 1681.00 | D23: 1343.00 | E23: 1072.00 | F23: 855.00 | G23: 695.00 | H23: 605.00 | I23: 542.50 | J23: 447.50 | K23: 402.50 | L23: 327.50 | M23: 294.00 | N23: 237.00 | O23: 200.00 | P23: 153.50 | Q23: 129.00 | R23: 106.00 | S23: 78.75 | T23: 61.75 | U23: 53.25 | V23: 45.50 | W23: =(OFFSET(W$5,IF($A23>$A$21,0,$A24),0)+OFFSET(W5,IF($A23>$A$21,0,$A24+1),0))/2 -> 32.00
A24: =MATCH($A23,$A$6:$A$21,1) -> 8 | B24: =B23*IF($A23>$A$21,1,0.85) -> 1789.25 | C24: =C23*IF($A23>$A$21,1,0.85) -> 1428.85 | D24: 1141.55 | E24: 911.20 | F24: 726.75 | G24: 590.75 | H24: 514.25 | I24: 461.13 | J24: 380.38 | K24: 342.13 | L24: 278.38 | M24: 249.90 | N24: 201.45 | O24: 170.00 | P24: 130.48 | Q24: 109.65 | R24: 90.10 | S24: 66.94 | T24: 52.49 | U24: 45.26 | V24: 38.68 | W24: =W23*IF($A23>$A$21,1,0.85) -> 27.20
A26: =USV!M24*60 -> 600 | B26: =(OFFSET(B$5,IF($A26>$A$21,0,$A27),0)+OFFSET(B8,IF($A26>$A$21,0,$A27+1),0))/2 -> 2086.50 | C26: =(OFFSET(C$5,IF($A26>$A$21,0,$A27),0)+OFFSET(C8,IF($A26>$A$21,0,$A27+1),0))/2 -> 1666.00 | D26: =(OFFSET(D$5,IF($A26>$A$21,0,$A27),0)+OFFSET(D8,IF($A26>$A$21,0,$A27+1),0))/2 -> 1330.50 | E26: =(OFFSET(E$5,IF($A26>$A$21,0,$A27),0)+OFFSET(E8,IF($A26>$A$21,0,$A27+1),0))/2 -> 1062.50 | F26: =(OFFSET(F$5,IF($A26>$A$21,0,$A27),0)+OFFSET(F8,IF($A26>$A$21,0,$A27+1),0))/2 -> 860.00 | G26: =(OFFSET(G$5,IF($A26>$A$21,0,$A27),0)+OFFSET(G8,IF($A26>$A$21,0,$A27+1),0))/2 -> 685.00 | H26: =(OFFSET(H$5,IF($A26>$A$21,0,$A27),0)+OFFSET(H8,IF($A26>$A$21,0,$A27+1),0))/2 -> 597.50 | I26: =(OFFSET(I$5,IF($A26>$A$21,0,$A27),0)+OFFSET(I8,IF($A26>$A$21,0,$A27+1),0))/2 -> 547.50 | J26: =(OFFSET(J$5,IF($A26>$A$21,0,$A27),0)+OFFSET(J8,IF($A26>$A$21,0,$A27+1),0))/2 -> 451.50 | K26: =(OFFSET(K$5,IF($A26>$A$21,0,$A27),0)+OFFSET(K8,IF($A26>$A$21,0,$A27+1),0))/2 -> 400.00 | L26: =(OFFSET(L$5,IF($A26>$A$21,0,$A27),0)+OFFSET(L8,IF($A26>$A$21,0,$A27+1),0))/2 -> 328.00 | M26: =(OFFSET(M$5,IF($A26>$A$21,0,$A27),0)+OFFSET(M8,IF($A26>$A$21,0,$A27+1),0))/2 -> 290.00 | N26: =(OFFSET(N$5,IF($A26>$A$21,0,$A27),0)+OFFSET(N8,IF($A26>$A$21,0,$A27+1),0))/2 -> 235.50 | O26: =(OFFSET(O$5,IF($A26>$A$21,0,$A27),0)+OFFSET(O8,IF($A26>$A$21,0,$A27+1),0))/2 -> 199.00 | P26: =(OFFSET(P$5,IF($A26>$A$21,0,$A27),0)+OFFSET(P8,IF($A26>$A$21,0,$A27+1),0))/2 -> 155.50 | Q26: =(OFFSET(Q$5,IF($A26>$A$21,0,$A27),0)+OFFSET(Q8,IF($A26>$A$21,0,$A27+1),0))/2 -> 128.50 | R26: =(OFFSET(R$5,IF($A26>$A$21,0,$A27),0)+OFFSET(R8,IF($A26>$A$21,0,$A27+1),0))/2 -> 104.50 | S26: =(OFFSET(S$5,IF($A26>$A$21,0,$A27),0)+OFFSET(S8,IF($A26>$A$21,0,$A27+1),0))/2 -> 78.25 | T26: =(OFFSET(T$5,IF($A26>$A$21,0,$A27),0)+OFFSET(T8,IF($A26>$A$21,0,$A27+1),0))/2 -> 61.75 | U26: =(OFFSET(U$5,IF($A26>$A$21,0,$A27),0)+OFFSET(U8,IF($A26>$A$21,0,$A27+1),0))/2 -> 53.50 | V26: =(OFFSET(V$5,IF($A26>$A$21,0,$A27),0)+OFFSET(V8,IF($A26>$A$21,0,$A27+1),0))/2 -> 46.00 | W26: 32.00
A27: =MATCH($A26,$A$6:$A$21,1) -> 7 | B27: =B26*IF($A26>$A$21,1,0.85) -> 1773.53 | C27: =C26*IF($A26>$A$21,1,0.85) -> 1416.10 | D27: =D26*IF($A26>$A$21,1,0.85) -> 1130.93 | E27: =E26*IF($A26>$A$21,1,0.85) -> 903.13 | F27: =F26*IF($A26>$A$21,1,0.85) -> 731.00 | G27: =G26*IF($A26>$A$21,1,0.85) -> 582.25 | H27: =H26*IF($A26>$A$21,1,0.85) -> 507.88 | I27: =I26*IF($A26>$A$21,1,0.85) -> 465.38 | J27: =J26*IF($A26>$A$21,1,0.85) -> 383.78 | K27: =K26*IF($A26>$A$21,1,0.85) -> 340.00 | L27: =L26*IF($A26>$A$21,1,0.85) -> 278.80 | M27: =M26*IF($A26>$A$21,1,0.85) -> 246.50 | N27: =N26*IF($A26>$A$21,1,0.85) -> 200.18 | O27: =O26*IF($A26>$A$21,1,0.85) -> 169.15 | P27: =P26*IF($A26>$A$21,1,0.85) -> 132.18 | Q27: =Q26*IF($A26>$A$21,1,0.85) -> 109.23 | R27: =R26*IF($A26>$A$21,1,0.85) -> 88.83 | S27: =S26*IF($A26>$A$21,1,0.85) -> 66.51 | T27: =T26*IF($A26>$A$21,1,0.85) -> 52.49 | U27: =U26*IF($A26>$A$21,1,0.85) -> 45.48 | V27: =V26*IF($A26>$A$21,1,0.85) -> 39.10 | W27: 27.20
A29: =USV!O24*60 -> 60 | B29: =(OFFSET(B$5,IF($A29>$A$21,0,$A30),0)+OFFSET(B12,IF($A29>$A$21,0,$A30+1),0))/2 -> 2590.50 | C29: 2068.50 | D29: 1652.00 | E29: 1319.50 | F29: 1010.00 | G29: 792.50 | H29: 690.00 | I29: 623.50 | J29: 525.00 | K29: 456.00 | L29: 379.00 | M29: 328.50 | N29: 276.00 | O29: 223.50 | P29: 183.50 | Q29: 146.50 | R29: 115.00 | S29: 90.25 | T29: 71.25 | U29: 61.50 | V29: 53.00 | W29: =(OFFSET(W$5,IF($A29>$A$21,0,$A30),0)+OFFSET(W12,IF($A29>$A$21,0,$A30+1),0))/2 -> 34.00
A30: =MATCH($A29,$A$6:$A$21,1) -> 2 | B30: =B29*IF($A29>$A$21,1,0.85) -> 2201.93 | C30: 1758.23 | D30: 1404.20 | E30: 1121.58 | F30: 858.50 | G30: 673.63 | H30: 586.50 | I30: 529.98 | J30: 446.25 | K30: 387.60 | L30: 322.15 | M30: 279.23 | N30: 234.60 | O30: 189.98 | P30: 155.98 | Q30: 124.53 | R30: 97.75 | S30: 76.71 | T30: 60.56 | U30: 52.28 | V30: 45.05 | W30: =W29*IF($A29>$A$21,1,0.85) -> 28.90

Sheet NH00C-690V (hidden)
A3: NH00C/690V-uf2
A5: (s) | B5: 160 | C5: 125 | D5: 100 | E5: 80 | F5: 63 | G5: 50 | H5: 40 | I5: 32 | J5: 25 | K5: 20 | L5: 16 | M5: 10
A6: 10 | B6: 390 | C6: 300 | D6: 240 | E6: 200 | F6: 140 | G6: 115 | H6: 90 | I6: 75 | J6: 59 | K6: 43 | L6: 34 | M6: 30.5
A7: 60 | B7: 315 | C7: 230 | D7: 200 | E7: 147 | F7: 117 | G7: 92 | H7: 70 | I7: 60 | J7: 45 | K7: 34 | L7: 27 | M7: 23
A8: 120 | B8: 290 | C8: 215 | D8: 180 | E8: 137 | F8: 113 | G8: 86 | H8: 65 | I8: 56 | J8: 42.5 | K8: 32.5 | L8: 25.5 | M8: 22
A9: 180 | B9: 270 | C9: 210 | D9: 170 | E9: 135 | F9: 110 | G9: 82 | H9: 63 | I9: 53 | J9: 41.5 | K9: 31.5 | L9: 24 | M9: 21.5
A10: 240 | B10: 262 | C10: 205 | D10: 165 | E10: 132 | F10: 109 | G10: 80.5 | H10: 62 | I10: 52 | J10: 41 | K10: 31 | L10: 23.5 | M10: 21
A11: 300 | B11: 255 | C11: 200 | D11: 160 | E11: 130 | F11: 105 | G11: 79 | H11: 61 | I11: 51.5 | J11: 40 | K11: 30.5 | L11: 23 | M11: 20.5
A12: 600 | B12: 245 | C12: 190 | D12: 150 | E12: 125 | F12: 96 | G12: 74 | H12: 57 | I12: 49.5 | J12: 38 | K12: 29.5 | L12: 22.5 | M12: 20
A13: 900 | B13: 240 | C13: 185 | D13: 148.5 | E13: 124 | F13: 94.5 | G13: 73 | H13: 55.5 | I13: 48 | J13: 37 | K13: 29 | L13: 22 | M13: 19.5
A14: 1200 | B14: 237 | C14: 180 | D14: 147 | E14: 123 | F14: 93 | G14: 72.5 | H14: 54 | I14: 47 | J14: 35.5 | K14: 28 | L14: 22 | M14: 19
A15: 1800 | B15: 235 | C15: 177 | D15: 145 | E15: 122 | F15: 92 | G15: 72 | H15: 53.5 | I15: 46 | J15: 35 | K15: 27 | L15: 22 | M15: 19
A16: 2400 | B16: 233 | C16: 173 | D16: 143 | E16: 121 | F16: 91 | G16: 71 | H16: 53 | I16: 45 | J16: 34.5 | K16: 26 | L16: 22 | M16: 18.5
A17: 3000 | B17: 230 | C17: 170 | D17: 140 | E17: 120 | F17: 90 | G17: 70 | H17: 52.5 | I17: 44.5 | J17: 34 | K17: 26 | L17: 21.5 | M17: 18
A18: 3600 | B18: 230 | C18: 170 | D18: 140 | E18: 118 | F18: 89 | G18: 67 | H18: 52 | I18: 44 | J18: 34 | K18: 26 | L18: 21.5 | M18: 17.5
A19: 5400 | B19: 228 | C19: 167 | D19: 138 | E19: 115 | F19: 85 | G19: 66 | H19: 51 | I19: 43.5 | J19: 33.5 | K19: 25 | L19: 21 | M19: 17
A20: 7200 | B20: 225 | C20: 165 | D20: 135 | E20: 113 | F20: 84 | G20: 65 | H20: 50 | I20: 43 | J20: 33 | K20: 24.5 | L20: 20.5 | M20: 16.5
A21: 9000 | B21: 220 | C21: 160 | D21: 133 | E21: 110 | F21: 83 | G21: 64 | H21: 50 | I21: 42 | J21: 32 | K21: 24 | L21: 20 | M21: 16
A23: =USV!J22*60 -> 900 | B23: =(OFFSET(B$5,IF($A23>$A$21,0,$A24),0)+OFFSET(B$5,IF($A23>$A$21,0,$A24+1),0))/2 -> 238.50 | C23: =(OFFSET(C$5,IF($A23>$A$21,0,$A24),0)+OFFSET(C$5,IF($A23>$A$21,0,$A24+1),0))/2 -> 182.50 | D23: 147.75 | E23: 123.50 | F23: 93.75 | G23: 72.75 | H23: 54.75 | I23: 47.50 | J23: 36.25 | K23: 28.50 | L23: 22.00 | M23: 19.25
A24: =MATCH($A23,$A$6:$A$21,1) -> 8 | B24: =B23*IF($A23>$A$21,1,0.85) -> 202.73 | C24: =C23*IF($A23>$A$21,1,0.85) -> 155.13 | D24: 125.59 | E24: 104.98 | F24: 79.69 | G24: 61.84 | H24: 46.54 | I24: 40.38 | J24: 30.81 | K24: 24.23 | L24: 18.70 | M24: 16.36
A26: =USV!M24*60 -> 600 | B26: =(OFFSET(B$5,IF($A26>$A$21,0,$A27),0)+OFFSET(B$5,IF($A26>$A$21,0,$A27+1),0))/2 -> 242.50 | C26: =(OFFSET(C$5,IF($A26>$A$21,0,$A27),0)+OFFSET(C$5,IF($A26>$A$21,0,$A27+1),0))/2 -> 187.50 | D26: =(OFFSET(D$5,IF($A26>$A$21,0,$A27),0)+OFFSET(D$5,IF($A26>$A$21,0,$A27+1),0))/2 -> 149.25 | E26: =(OFFSET(E$5,IF($A26>$A$21,0,$A27),0)+OFFSET(E$5,IF($A26>$A$21,0,$A27+1),0))/2 -> 124.50 | F26: =(OFFSET(F$5,IF($A26>$A$21,0,$A27),0)+OFFSET(F$5,IF($A26>$A$21,0,$A27+1),0))/2 -> 95.25 | G26: =(OFFSET(G$5,IF($A26>$A$21,0,$A27),0)+OFFSET(G$5,IF($A26>$A$21,0,$A27+1),0))/2 -> 73.50 | H26: =(OFFSET(H$5,IF($A26>$A$21,0,$A27),0)+OFFSET(H$5,IF($A26>$A$21,0,$A27+1),0))/2 -> 56.25 | I26: =(OFFSET(I$5,IF($A26>$A$21,0,$A27),0)+OFFSET(I$5,IF($A26>$A$21,0,$A27+1),0))/2 -> 48.75 | J26: =(OFFSET(J$5,IF($A26>$A$21,0,$A27),0)+OFFSET(J$5,IF($A26>$A$21,0,$A27+1),0))/2 -> 37.50 | K26: =(OFFSET(K$5,IF($A26>$A$21,0,$A27),0)+OFFSET(K$5,IF($A26>$A$21,0,$A27+1),0))/2 -> 29.25 | L26: =(OFFSET(L$5,IF($A26>$A$21,0,$A27),0)+OFFSET(L$5,IF($A26>$A$21,0,$A27+1),0))/2 -> 22.25 | M26: =(OFFSET(M$5,IF($A26>$A$21,0,$A27),0)+OFFSET(M$5,IF($A26>$A$21,0,$A27+1),0))/2 -> 19.75
A27: =MATCH($A26,$A$6:$A$21,1) -> 7 | B27: =B26*IF($A26>$A$21,1,0.85) -> 206.13 | C27: =C26*IF($A26>$A$21,1,0.85) -> 159.38 | D27: =D26*IF($A26>$A$21,1,0.85) -> 126.86 | E27: =E26*IF($A26>$A$21,1,0.85) -> 105.83 | F27: =F26*IF($A26>$A$21,1,0.85) -> 80.96 | G27: =G26*IF($A26>$A$21,1,0.85) -> 62.48 | H27: =H26*IF($A26>$A$21,1,0.85) -> 47.81 | I27: =I26*IF($A26>$A$21,1,0.85) -> 41.44 | J27: =J26*IF($A26>$A$21,1,0.85) -> 31.88 | K27: =K26*IF($A26>$A$21,1,0.85) -> 24.86 | L27: =L26*IF($A26>$A$21,1,0.85) -> 18.91 | M27: =M26*IF($A26>$A$21,1,0.85) -> 16.79
A29: =USV!O24*60 -> 60 | B29: =(OFFSET(B$5,IF($A29>$A$21,0,$A30),0)+OFFSET(B$5,IF($A29>$A$21,0,$A30+1),0))/2 -> 302.50 | C29: =(OFFSET(C$5,IF($A29>$A$21,0,$A30),0)+OFFSET(C$5,IF($A29>$A$21,0,$A30+1),0))/2 -> 222.50 | D29: =(OFFSET(D$5,IF($A29>$A$21,0,$A30),0)+OFFSET(D$5,IF($A29>$A$21,0,$A30+1),0))/2 -> 190.00 | E29: =(OFFSET(E$5,IF($A29>$A$21,0,$A30),0)+OFFSET(E$5,IF($A29>$A$21,0,$A30+1),0))/2 -> 142.00 | F29: =(OFFSET(F$5,IF($A29>$A$21,0,$A30),0)+OFFSET(F$5,IF($A29>$A$21,0,$A30+1),0))/2 -> 115.00 | G29: =(OFFSET(G$5,IF($A29>$A$21,0,$A30),0)+OFFSET(G$5,IF($A29>$A$21,0,$A30+1),0))/2 -> 89.00 | H29: =(OFFSET(H$5,IF($A29>$A$21,0,$A30),0)+OFFSET(H$5,IF($A29>$A$21,0,$A30+1),0))/2 -> 67.50 | I29: =(OFFSET(I$5,IF($A29>$A$21,0,$A30),0)+OFFSET(I$5,IF($A29>$A$21,0,$A30+1),0))/2 -> 58.00 | J29: =(OFFSET(J$5,IF($A29>$A$21,0,$A30),0)+OFFSET(J$5,IF($A29>$A$21,0,$A30+1),0))/2 -> 43.75 | K29: =(OFFSET(K$5,IF($A29>$A$21,0,$A30),0)+OFFSET(K$5,IF($A29>$A$21,0,$A30+1),0))/2 -> 33.25 | L29: =(OFFSET(L$5,IF($A29>$A$21,0,$A30),0)+OFFSET(L$5,IF($A29>$A$21,0,$A30+1),0))/2 -> 26.25 | M29: =(OFFSET(M$5,IF($A29>$A$21,0,$A30),0)+OFFSET(M$5,IF($A29>$A$21,0,$A30+1),0))/2 -> 22.50
A30: =MATCH($A29,$A$6:$A$21,1) -> 2 | B30: =B29*IF($A29>$A$21,1,0.85) -> 257.13 | C30: =C29*IF($A29>$A$21,1,0.85) -> 189.13 | D30: =D29*IF($A29>$A$21,1,0.85) -> 161.50 | E30: =E29*IF($A29>$A$21,1,0.85) -> 120.70 | F30: =F29*IF($A29>$A$21,1,0.85) -> 97.75 | G30: =G29*IF($A29>$A$21,1,0.85) -> 75.65 | H30: =H29*IF($A29>$A$21,1,0.85) -> 57.38 | I30: =I29*IF($A29>$A$21,1,0.85) -> 49.30 | J30: =J29*IF($A29>$A$21,1,0.85) -> 37.19 | K30: =K29*IF($A29>$A$21,1,0.85) -> 28.26 | L30: =L29*IF($A29>$A$21,1,0.85) -> 22.31 | M30: =M29*IF($A29>$A$21,1,0.85) -> 19.13

Sheet NH1-3-690V (hidden)
A3: NH1-3/690V-uf2
R4: NH000
A5: (s) | B5: 630 | C5: 500 | D5: 425 | E5: 400 | F5: 350 | G5: 315 | H5: 250 | I5: 200 | J5: 160 | K5: 125 | L5: 100 | M5: 80 | N5: 63 | O5: 50 | P5: 40 | Q5: 35 | R5: 25
A6: 10 | B6: 1700 | C6: 1350 | D6: 1250 | E6: 1200 | F6: 1100 | G6: 1000 | H6: 790 | I6: 620 | J6: 490 | K6: 370 | L6: 315 | M6: 235 | N6: 170 | O6: 125 | P6: 105 | Q6: 84 | R6: 59
A7: 60 | B7: 1210 | C7: 1010 | D7: 930 | E7: 860 | F7: 745 | G7: 700 | H7: 550 | I7: 440 | J7: 335 | K7: 255 | L7: 220 | M7: 170 | N7: 120 | O7: 92 | P7: 73 | Q7: 60 | R7: 45
A8: 120 | B8: 1170 | C8: 960 | D8: 850 | E8: 800 | F8: 700 | G8: 630 | H8: 516 | I8: 417 | J8: 317 | K8: 233 | L8: 200 | M8: 150 | N8: 115 | O8: 84 | P8: 67 | Q8: 54 | R8: 42.5
A9: 180 | B9: 1150 | C9: 900 | D9: 800 | E9: 730 | F9: 640 | G9: 600 | H9: 480 | I9: 390 | J9: 295 | K9: 223 | L9: 190 | M9: 140 | N9: 110 | O9: 79 | P9: 62.5 | Q9: 51.5 | R9: 41.5
A10: 240 | B10: 1100 | C10: 860 | D10: 770 | E10: 720 | F10: 625 | G10: 580 | H10: 460 | I10: 370 | J10: 285 | K10: 220 | L10: 181 | M10: 135 | N10: 102 | O10: 76 | P10: 61.5 | Q10: 50 | R10: 41
A11: 300 | B11: 1050 | C11: 835 | D11: 735 | E11: 700 | F11: 610 | G11: 560 | H11: 440 | I11: 355 | J11: 270 | K11: 215 | L11: 170 | M11: 131 | N11: 100 | O11: 73 | P11: 60 | Q11: 48 | R11: 40
A12: 600 | B12: 930 | C12: 780 | D12: 680 | E12: 630 | F12: 550 | G12: 520 | H12: 417 | I12: 328 | J12: 245 | K12: 200 | L12: 155 | M12: 125 | N12: 92 | O12: 69 | P12: 53.5 | Q12: 44 | R12: 38
A13: 900 | B13: 900 | C13: 730 | D13: 650 | E13: 615 | F13: 530 | G13: 500 | H13: 400 | I13: 320 | J13: 237 | K13: 185 | L13: 149 | M13: 121 | N13: 88 | O13: 65 | P13: 52 | Q13: 43 | R13: 37
A14: 1200 | B14: 860 | C14: 725 | D14: 630 | E14: 600 | F14: 520 | G14: 490 | H14: 390 | I14: 315 | J14: 231 | K14: 182 | L14: 144 | M14: 120 | N14: 85 | O14: 63.5 | P14: 51.5 | Q14: 42 | R14: 35.5
A15: 1800 | B15: 835 | C15: 700 | D15: 617 | E15: 570 | F15: 510 | G15: 460 | H15: 361 | I15: 300 | J15: 224 | K15: 171 | L15: 139 | M15: 119 | N15: 82 | O15: 62 | P15: 49 | Q15: 40 | R15: 35
A16: 2400 | B16: 820 | C16: 670 | D16: 605 | E16: 558 | F16: 495 | G16: 446 | H16: 352 | I16: 290 | J16: 223 | K16: 168 | L16: 137 | M16: 118 | N16: 81 | O16: 60 | P16: 47 | Q16: 39.5 | R16: 34.5
A17: 3000 | B17: 810 | C17: 660 | D17: 600 | E17: 550 | F17: 490 | G17: 445 | H17: 350 | I17: 285 | J17: 222 | K17: 165 | L17: 135 | M17: 117 | N17: 80 | O17: 60 | P17: 46.5 | Q17: 39 | R17: 34
A18: 3600 | B18: 800 | C18: 650 | D18: 590 | E18: 540 | F18: 480 | G18: 440 | H18: 342 | I18: 280 | J18: 220 | K18: 163 | L18: 133 | M18: 115 | N18: 79 | O18: 59 | P18: 46 | Q18: 38 | R18: 34
A19: 5400 | B19: 780 | C19: 635 | D19: 565 | E19: 530 | F19: 465 | G19: 430 | H19: 335 | I19: 273 | J19: 212 | K19: 155 | L19: 130 | M19: 110 | N19: 76 | O19: 56.5 | P19: 44 | Q19: 36.5 | R19: 33.5
A20: 7200 | B20: 750 | C20: 625 | D20: 550 | E20: 525 | F20: 450 | G20: 420 | H20: 330 | I20: 268 | J20: 210 | K20: 153 | L20: 129 | M20: 108 | N20: 74 | O20: 55 | P20: 44 | Q20: 36 | R20: 33
A21: 9000 | B21: 740 | C21: 620 | D21: 540 | E21: 520 | F21: 450 | G21: 420 | H21: 325 | I21: 260 | J21: 205 | K21: 150 | L21: 125 | M21: 105 | N21: 73 | O21: 53.5 | P21: 44 | Q21: 35 | R21: 32
A23: =USV!J22*60 -> 900 | B23: =(OFFSET(B$5,IF($A23>$A$21,0,$A24),0)+OFFSET(B$5,IF($A23>$A$21,0,$A24+1),0))/2 -> 880.00 | C23: =(OFFSET(C$5,IF($A23>$A$21,0,$A24),0)+OFFSET(C$5,IF($A23>$A$21,0,$A24+1),0))/2 -> 727.50 | D23: 640.00 | E23: 607.50 | F23: 525.00 | G23: 495.00 | H23: 395.00 | I23: 317.50 | J23: 234.00 | K23: 183.50 | L23: 146.50 | M23: 120.50 | N23: 86.50 | O23: 64.25 | P23: 51.75 | Q23: 42.50 | R23: 36.25
A24: =MATCH($A23,$A$6:$A$21,1) -> 8 | B24: =B23*IF($A23>$A$21,1,0.85) -> 748.00 | C24: =C23*IF($A23>$A$21,1,0.85) -> 618.38 | D24: 544.00 | E24: 516.38 | F24: 446.25 | G24: 420.75 | H24: 335.75 | I24: 269.88 | J24: 198.90 | K24: 155.98 | L24: 124.53 | M24: 102.43 | N24: 73.53 | O24: 54.61 | P24: 43.99 | Q24: 36.13 | R24: 30.81
A26: =USV!M24*60 -> 600 | B26: =(OFFSET(B$5,IF($A26>$A$21,0,$A27),0)+OFFSET(B$5,IF($A26>$A$21,0,$A27+1),0))/2 -> 915.00 | C26: =(OFFSET(C$5,IF($A26>$A$21,0,$A27),0)+OFFSET(C$5,IF($A26>$A$21,0,$A27+1),0))/2 -> 755.00 | D26: =(OFFSET(D$5,IF($A26>$A$21,0,$A27),0)+OFFSET(D$5,IF($A26>$A$21,0,$A27+1),0))/2 -> 665.00 | E26: =(OFFSET(E$5,IF($A26>$A$21,0,$A27),0)+OFFSET(E$5,IF($A26>$A$21,0,$A27+1),0))/2 -> 622.50 | F26: =(OFFSET(F$5,IF($A26>$A$21,0,$A27),0)+OFFSET(F$5,IF($A26>$A$21,0,$A27+1),0))/2 -> 540.00 | G26: =(OFFSET(G$5,IF($A26>$A$21,0,$A27),0)+OFFSET(G$5,IF($A26>$A$21,0,$A27+1),0))/2 -> 510.00 | H26: =(OFFSET(H$5,IF($A26>$A$21,0,$A27),0)+OFFSET(H$5,IF($A26>$A$21,0,$A27+1),0))/2 -> 408.50 | I26: =(OFFSET(I$5,IF($A26>$A$21,0,$A27),0)+OFFSET(I$5,IF($A26>$A$21,0,$A27+1),0))/2 -> 324.00 | J26: =(OFFSET(J$5,IF($A26>$A$21,0,$A27),0)+OFFSET(J$5,IF($A26>$A$21,0,$A27+1),0))/2 -> 241.00 | K26: =(OFFSET(K$5,IF($A26>$A$21,0,$A27),0)+OFFSET(K$5,IF($A26>$A$21,0,$A27+1),0))/2 -> 192.50 | L26: =(OFFSET(L$5,IF($A26>$A$21,0,$A27),0)+OFFSET(L$5,IF($A26>$A$21,0,$A27+1),0))/2 -> 152.00 | M26: =(OFFSET(M$5,IF($A26>$A$21,0,$A27),0)+OFFSET(M$5,IF($A26>$A$21,0,$A27+1),0))/2 -> 123.00 | N26: =(OFFSET(N$5,IF($A26>$A$21,0,$A27),0)+OFFSET(N$5,IF($A26>$A$21,0,$A27+1),0))/2 -> 90.00 | O26: =(OFFSET(O$5,IF($A26>$A$21,0,$A27),0)+OFFSET(O$5,IF($A26>$A$21,0,$A27+1),0))/2 -> 67.00 | P26: =(OFFSET(P$5,IF($A26>$A$21,0,$A27),0)+OFFSET(P$5,IF($A26>$A$21,0,$A27+1),0))/2 -> 52.75 | Q26: =(OFFSET(Q$5,IF($A26>$A$21,0,$A27),0)+OFFSET(Q$5,IF($A26>$A$21,0,$A27+1),0))/2 -> 43.50 | R26: 37.50
A27: =MATCH($A26,$A$6:$A$21,1) -> 7 | B27: =B26*IF($A26>$A$21,1,0.85) -> 777.75 | C27: =C26*IF($A26>$A$21,1,0.85) -> 641.75 | D27: =D26*IF($A26>$A$21,1,0.85) -> 565.25 | E27: =E26*IF($A26>$A$21,1,0.85) -> 529.13 | F27: =F26*IF($A26>$A$21,1,0.85) -> 459.00 | G27: =G26*IF($A26>$A$21,1,0.85) -> 433.50 | H27: =H26*IF($A26>$A$21,1,0.85) -> 347.23 | I27: =I26*IF($A26>$A$21,1,0.85) -> 275.40 | J27: =J26*IF($A26>$A$21,1,0.85) -> 204.85 | K27: =K26*IF($A26>$A$21,1,0.85) -> 163.63 | L27: =L26*IF($A26>$A$21,1,0.85) -> 129.20 | M27: =M26*IF($A26>$A$21,1,0.85) -> 104.55 | N27: =N26*IF($A26>$A$21,1,0.85) -> 76.50 | O27: =O26*IF($A26>$A$21,1,0.85) -> 56.95 | P27: =P26*IF($A26>$A$21,1,0.85) -> 44.84 | Q27: =Q26*IF($A26>$A$21,1,0.85) -> 36.98 | R27: 31.88
A29: =USV!O24*60 -> 60 | B29: =(OFFSET(B$5,IF($A29>$A$21,0,$A30),0)+OFFSET(B$5,IF($A29>$A$21,0,$A30+1),0))/2 -> 1190.00 | C29: =(OFFSET(C$5,IF($A29>$A$21,0,$A30),0)+OFFSET(C$5,IF($A29>$A$21,0,$A30+1),0))/2 -> 985.00 | D29: =(OFFSET(D$5,IF($A29>$A$21,0,$A30),0)+OFFSET(D$5,IF($A29>$A$21,0,$A30+1),0))/2 -> 890.00 | E29: =(OFFSET(E$5,IF($A29>$A$21,0,$A30),0)+OFFSET(E$5,IF($A29>$A$21,0,$A30+1),0))/2 -> 830.00 | F29: =(OFFSET(F$5,IF($A29>$A$21,0,$A30),0)+OFFSET(F$5,IF($A29>$A$21,0,$A30+1),0))/2 -> 722.50 | G29: =(OFFSET(G$5,IF($A29>$A$21,0,$A30),0)+OFFSET(G$5,IF($A29>$A$21,0,$A30+1),0))/2 -> 665.00 | H29: =(OFFSET(H$5,IF($A29>$A$21,0,$A30),0)+OFFSET(H$5,IF($A29>$A$21,0,$A30+1),0))/2 -> 533.00 | I29: =(OFFSET(I$5,IF($A29>$A$21,0,$A30),0)+OFFSET(I$5,IF($A29>$A$21,0,$A30+1),0))/2 -> 428.50 | J29: =(OFFSET(J$5,IF($A29>$A$21,0,$A30),0)+OFFSET(J$5,IF($A29>$A$21,0,$A30+1),0))/2 -> 326.00 | K29: =(OFFSET(K$5,IF($A29>$A$21,0,$A30),0)+OFFSET(K$5,IF($A29>$A$21,0,$A30+1),0))/2 -> 244.00 | L29: =(OFFSET(L$5,IF($A29>$A$21,0,$A30),0)+OFFSET(L$5,IF($A29>$A$21,0,$A30+1),0))/2 -> 210.00 | M29: =(OFFSET(M$5,IF($A29>$A$21,0,$A30),0)+OFFSET(M$5,IF($A29>$A$21,0,$A30+1),0))/2 -> 160.00 | N29: =(OFFSET(N$5,IF($A29>$A$21,0,$A30),0)+OFFSET(N$5,IF($A29>$A$21,0,$A30+1),0))/2 -> 117.50 | O29: =(OFFSET(O$5,IF($A29>$A$21,0,$A30),0)+OFFSET(O$5,IF($A29>$A$21,0,$A30+1),0))/2 -> 88.00 | P29: =(OFFSET(P$5,IF($A29>$A$21,0,$A30),0)+OFFSET(P$5,IF($A29>$A$21,0,$A30+1),0))/2 -> 70.00 | Q29: =(OFFSET(Q$5,IF($A29>$A$21,0,$A30),0)+OFFSET(Q$5,IF($A29>$A$21,0,$A30+1),0))/2 -> 57.00 | R29: 43.75
A30: =MATCH($A29,$A$6:$A$21,1) -> 2 | B30: =B29*IF($A29>$A$21,1,0.85) -> 1011.50 | C30: =C29*IF($A29>$A$21,1,0.85) -> 837.25 | D30: =D29*IF($A29>$A$21,1,0.85) -> 756.50 | E30: =E29*IF($A29>$A$21,1,0.85) -> 705.50 | F30: =F29*IF($A29>$A$21,1,0.85) -> 614.13 | G30: =G29*IF($A29>$A$21,1,0.85) -> 565.25 | H30: =H29*IF($A29>$A$21,1,0.85) -> 453.05 | I30: =I29*IF($A29>$A$21,1,0.85) -> 364.23 | J30: =J29*IF($A29>$A$21,1,0.85) -> 277.10 | K30: =K29*IF($A29>$A$21,1,0.85) -> 207.40 | L30: =L29*IF($A29>$A$21,1,0.85) -> 178.50 | M30: =M29*IF($A29>$A$21,1,0.85) -> 136.00 | N30: =N29*IF($A29>$A$21,1,0.85) -> 99.88 | O30: =O29*IF($A29>$A$21,1,0.85) -> 74.80 | P30: =P29*IF($A29>$A$21,1,0.85) -> 59.50 | Q30: =Q29*IF($A29>$A$21,1,0.85) -> 48.45 | R30: 37.19

Sheet SE-500V (hidden)
B1: Anzeiger oben | G1: Kraftmelder
A2: Bemessungsstrom_A | B2: NH000 | C2: NH1 | D2: NH2 | E2: NH3 | F2: NH4a | G2: NH000 | H2: NH1 | I2: NH2 | J2: NH3 | K2: NH4a
A3: 6 | B3: R5211450 | C3: - | D3: - | E3: - | F3: - | G3: R5211413 | H3: - | I3: - | J3: - | K3: -
A4: 10 | B4: R5211750 | C4: - | D4: - | E4: - | F4: - | G4: R5211713 | H4: - | I4: - | J4: - | K4: -
A5: 16 | B5: R5212250 | C5: - | D5: - | E5: - | F5: - | G5: R5212213 | H5: - | I5: - | J5: - | K5: -
A6: 20 | B6: R5212450 | C6: - | D6: - | E6: - | F6: - | G6: R5212413 | H6: - | I6: - | J6: - | K6: -
A7: 25 | B7: R5212650 | C7: - | D7: - | E7: - | F7: - | G7: R5212613 | H7: - | I7: - | J7: - | K7: -
A8: 32 | B8: R5212950 | C8: - | D8: - | E8: - | F8: - | G8: R5212913 | H8: - | I8: - | J8: - | K8: -
A9: 35 | B9: R5213150 | C9: - | D9: - | E9: - | F9: - | G9: R5213113 | H9: - | I9: - | J9: - | K9: -
A10: 40 | B10: R5213450 | C10: - | D10: - | E10: - | F10: - | G10: R5213413 | H10: - | I10: - | J10: - | K10: -
A11: 50 | B11: R5213550 | C11: - | D11: - | E11: - | F11: - | G11: R5213513 | H11: - | I11: - | J11: - | K11: -
A12: 63 | B12: R5213850 | C12: R1213800 | D12: - | E12: - | F12: - | G12: R5213813 | H12: R1213804 | I12: - | J12: - | K12: -
A13: 80 | B13: R5214150 | C13: R1214100 | D13: - | E13: - | F13: - | G13: R5214113 | H13: R1214104 | I13: - | J13: - | K13: -
A14: 100 | B14: R5214350 | C14: R1214300 | D14: - | E14: - | F14: - | G14: R5214313 | H14: R1214304 | I14: - | J14: - | K14: -
A15: 125 | B15: R5214650 | C15: R1214600 | D15: R2214600 | E15: - | F15: - | G15: R5214613 | H15: R1214604 | I15: R2214604 | J15: - | K15: -
A16: 160 | B16: R5214950 | C16: R1214900 | D16: R2214900 | E16: - | F16: - | G16: R5214913 | H16: R1214904 | I16: R2214904 | J16: - | K16: -
A17: 200 | B17: - | C17: R1215200 | D17: R2215200 | E17: - | F17: - | G17: - | H17: R1215204 | I17: R2215204 | J17: - | K17: -
A18: 224 | B18: - | C18: R1215300 | D18: R2215300 | E18: - | F18: - | G18: - | H18: R1215304 | I18: R2215304 | J18: - | K18: -
A19: 250 | B19: - | C19: R1215600 | D19: R2215600 | E19: R3215600 | F19: - | G19: - | H19: R1215604 | I19: R2215604 | J19: R3215604 | K19: -
A20: 315 | B20: - | C20: - | D20: R2215900 | E20: R3215900 | F20: - | G20: - | H20: - | I20: R2215904 | J20: R3215904 | K20: -
A21: 350 | B21: - | C21: - | D21: R2216000 | E21: R3216000 | F21: - | G21: - | H21: - | I21: R2216004 | J21: R3216004 | K21: -
A22: 400 | B22: - | C22: - | D22: R2216200 | E22: R3216200 | F22: - | G22: - | H22: - | I22: R2216204 | J22: R3216204 | K22: -
A23: 425 | B23: - | C23: - | D23: - | E23: R3216300 | F23: - | G23: - | H23: - | I23: - | J23: R3216304 | K23: -
A24: 500 | B24: - | C24: - | D24: - | E24: R3216600 | F24: - | G24: - | H24: - | I24: - | J24: R3216604 | K24: -
A25: 630 | B25: - | C25: - | D25: - | E25: R3216900 | F25: - | G25: - | H25: - | I25: - | J25: R3216904 | K25: -
A26: 800 | B26: - | C26: - | D26: - | E26: - | F26: R4217200 | G26: - | H26: - | I26: - | J26: - | K26: R4217204
A27: 1000 | B27: - | C27: - | D27: - | E27: - | F27: R4217600 | G27: - | H27: - | I27: - | J27: - | K27: R4217604
A28: 1250 | B28: - | C28: - | D28: - | E28: - | F28: R4217900 | G28: - | H28: - | I28: - | J28: - | K28: R4217904
A29: 1500 | B29: - | C29: - | D29: - | E29: - | F29: R4218200 | G29: - | H29: - | I29: - | J29: - | K29: R4218204

Sheet SE-690V (hidden)
B1: Anzeiger oben | G1: Kraftmelder
A2: Bemessungsstrom_A | B2: NH000 | C2: NH1 | D2: NH2 | E2: NH3 | F2: NH4a | G2: NH000 | H2: NH1 | I2: NH2 | J2: NH3 | K2: NH4a
A3: 6 | B3: - | C3: - | D3: - | E3: - | F3: - | G3: - | H3: - | I3: - | J3: - | K3: -
A4: 10 | B4: - | C4: - | D4: - | E4: - | F4: - | G4: - | H4: - | I4: - | J4: - | K4: -
A5: 16 | B5: R5282250 | C5: - | D5: - | E5: - | F5: - | G5: R5282213 | H5: - | I5: - | J5: - | K5: -
A6: 20 | B6: R5282450 | C6: - | D6: - | E6: - | F6: - | G6: R5282413 | H6: - | I6: - | J6: - | K6: -
A7: 25 | B7: R5282650 | C7: - | D7: - | E7: - | F7: - | G7: R5282613 | H7: - | I7: - | J7: - | K7: -
A8: 32 | B8: R5282950 | C8: - | D8: - | E8: - | F8: - | G8: R5282913 | H8: - | I8: - | J8: - | K8: -
A9: 35 | B9: R5283150 | C9: R1283100 | D9: - | E9: - | F9: - | G9: R5283113 | H9: R1283104 | I9: - | J9: - | K9: -
A10: 40 | B10: R5283450 | C10: R1283400 | D10: - | E10: - | F10: - | G10: R5283413 | H10: R1283404 | I10: - | J10: - | K10: -
A11: 50 | B11: R5283550 | C11: R1283500 | D11: - | E11: - | F11: - | G11: R5283513 | H11: R1283504 | I11: - | J11: - | K11: -
A12: 63 | B12: R5283850 | C12: R1283800 | D12: - | E12: - | F12: - | G12: R5283813 | H12: R1283804 | I12: - | J12: - | K12: -
A13: 80 | B13: R5284150 | C13: R1284100 | D13: - | E13: - | F13: - | G13: R5284113 | H13: R1284104 | I13: - | J13: - | K13: -
A14: 100 | B14: R5284350 | C14: R1284300 | D14: - | E14: - | F14: - | G14: R5284313 | H14: R1284304 | I14: - | J14: - | K14: -
A15: 125 | B15: R5284650 | C15: R1284600 | D15: R2284600 | E15: - | F15: - | G15: R5284613 | H15: R1284604 | I15: R2284604 | J15: - | K15: -
A16: 160 | B16: R5284950 | C16: R1284900 | D16: R2284900 | E16: - | F16: - | G16: R5284913 | H16: R1284904 | I16: R2284904 | J16: - | K16: -
A17: 200 | B17: - | C17: R1285200 | D17: R2285200 | E17: - | F17: - | G17: - | H17: R1285204 | I17: R2285204 | J17: - | K17: -
A18: 224 | B18: - | C18: R1285300 | D18: R2285300 | E18: - | F18: - | G18: - | H18: R1285304 | I18: R2285304 | J18: - | K18: -
A19: 250 | B19: - | C19: R1285600 | D19: R2285600 | E19: R3285600 | F19: - | G19: - | H19: R1285604 | I19: R2285604 | J19: R3285604 | K19: -
A20: 315 | B20: - | C20: - | D20: R2285900 | E20: R3285900 | F20: - | G20: - | H20: - | I20: R2285904 | J20: R3285904 | K20: -
A21: 350 | B21: - | C21: - | D21: R2286000 | E21: R3286000 | F21: - | G21: - | H21: - | I21: R2286004 | J21: R3286004 | K21: -
A22: 400 | B22: - | C22: - | D22: R2286200 | E22: R3286200 | F22: - | G22: - | H22: - | I22: R2286204 | J22: R3286204 | K22: -
A23: 425 | B23: - | C23: - | D23: - | E23: R3286300 | F23: - | G23: - | H23: - | I23: - | J23: R3286304 | K23: -
A24: 500 | B24: - | C24: - | D24: - | E24: R3286600 | F24: - | G24: - | H24: - | I24: - | J24: R3286604 | K24: -
A25: 630 | B25: - | C25: - | D25: - | E25: R3286900 | F25: - | G25: - | H25: - | I25: - | J25: R3286904 | K25: -
A26: 800 | B26: - | C26: - | D26: - | E26: - | F26: - | G26: - | H26: - | I26: - | J26: - | K26: -
A27: 1000 | B27: - | C27: - | D27: - | E27: - | F27: - | G27: - | H27: - | I27: - | J27: - | K27: -
A28: 1250 | B28: - | C28: - | D28: - | E28: - | F28: - | G28: - | H28: - | I28: - | J28: - | K28: -
A29: 1500 | B29: - | C29: - | D29: - | E29: - | F29: - | G29: - | H29: - | I29: - | J29: - | K29: -

Sheet SE-DC700V (hidden)
B1: Anzeiger oben | G1: Kraftmelder
A2: Bemessungsstrom_A | B2: NH000 | C2: NH1 | D2: NH2 | E2: NH3 | F2: NH4a | G2: NH000 | H2: NH1 | I2: NH2 | J2: NH3 | K2: NH4a
A3: 6 | B3: - | C3: - | D3: - | E3: - | F3: - | G3: - | H3: - | I3: - | J3: - | K3: -
A4: 10 | B4: - | C4: - | D4: - | E4: - | F4: - | G4: - | H4: - | I4: - | J4: - | K4: -
A5: 16 | B5: - | C5: - | D5: - | E5: - | F5: - | G5: - | H5: - | I5: - | J5: - | K5: -
A6: 20 | B6: - | C6: - | D6: - | E6: - | F6: - | G6: - | H6: - | I6: - | J6: - | K6: -
A7: 25 | B7: - | C7: - | D7: - | E7: - | F7: - | G7: - | H7: - | I7: - | J7: - | K7: -
A8: 32 | B8: - | C8: - | D8: - | E8: - | F8: - | G8: - | H8: - | I8: - | J8: - | K8: -
A9: 35 | B9: - | C9: - | D9: - | E9: - | F9: - | G9: - | H9: - | I9: - | J9: - | K9: -
A10: 40 | B10: - | C10: R1233402 | D10: - | E10: - | F10: - | G10: - | H10: R1233403 | I10: - | J10: - | K10: -
A11: 50 | B11: - | C11: R1233502 | D11: - | E11: - | F11: - | G11: - | H11: R1233503 | I11: - | J11: - | K11: -
A12: 63 | B12: - | C12: R1233802 | D12: - | E12: - | F12: - | G12: - | H12: R1233803 | I12: - | J12: - | K12: -
A13: 80 | B13: - | C13: R1234102 | D13: - | E13: - | F13: - | G13: - | H13: R1234103 | I13: - | J13: - | K13: -
A14: 100 | B14: - | C14: R1234302 | D14: - | E14: - | F14: - | G14: - | H14: R1234303 | I14: - | J14: - | K14: -
A15: 125 | B15: - | C15: R1234602 | D15: R2234602 | E15: - | F15: - | G15: - | H15: R1234603 | I15: R2234603 | J15: - | K15: -
A16: 160 | B16: - | C16: R1234902 | D16: R2234902 | E16: - | F16: - | G16: - | H16: R1234903 | I16: R2234903 | J16: - | K16: -
A17: 200 | B17: - | C17: R1235202 | D17: R2235202 | E17: - | F17: - | G17: - | H17: R1235203 | I17: R2235203 | J17: - | K17: -
A18: 224 | B18: - | C18: R1235302 | D18: R2235302 | E18: - | F18: - | G18: - | H18: R1235303 | I18: R2235303 | J18: - | K18: -
A19: 250 | B19: - | C19: R1235602 | D19: R2235602 | E19: R3235602 | F19: - | G19: - | H19: R1235603 | I19: R2235603 | J19: R3235603 | K19: -
A20: 315 | B20: - | C20: - | D20: R2235902 | E20: R3235902 | F20: - | G20: - | H20: - | I20: R2235903 | J20: R3235903 | K20: -
A21: 350 | B21: - | C21: - | D21: R2236002 | E21: R3236002 | F21: - | G21: - | H21: - | I21: R2236003 | J21: R3236003 | K21: -
A22: 400 | B22: - | C22: - | D22: R2236202 | E22: R3236202 | F22: - | G22: - | H22: - | I22: R2236203 | J22: R3236203 | K22: -
A23: 425 | B23: - | C23: - | D23: - | E23: R3236302 | F23: - | G23: - | H23: - | I23: - | J23: R3236303 | K23: -
A24: 500 | B24: - | C24: - | D24: - | E24: R3236602 | F24: - | G24: - | H24: - | I24: - | J24: R3236603 | K24: -
A25: 630 | B25: - | C25: - | D25: - | E25: R3236902 | F25: - | G25: - | H25: - | I25: - | J25: R3236903 | K25: -
A26: 800 | B26: - | C26: - | D26: - | E26: - | F26: - | G26: - | H26: - | I26: - | J26: - | K26: -
A27: 1000 | B27: - | C27: - | D27: - | E27: - | F27: - | G27: - | H27: - | I27: - | J27: - | K27: -
A28: 1250 | B28: - | C28: - | D28: - | E28: - | F28: - | G28: - | H28: - | I28: - | J28: - | K28: -
A29: 1500 | B29: - | C29: - | D29: - | E29: - | F29: - | G29: - | H29: - | I29: - | J29: - | K29: -

Sheet SE-DC800V (hidden)
B1: Anzeiger oben | G1: Kraftmelder
A2: Bemessungsstrom_A | B2: NH000 | C2: NH1 | D2: NH2 | E2: NH3 | F2: NH4a | G2: NH000 | H2: NH1 | I2: NH2 | J2: NH3 | K2: NH4a
A3: 6 | B3: - | C3: - | D3: - | E3: - | F3: - | G3: - | H3: - | I3: - | J3: - | K3: -
A4: 10 | B4: - | C4: - | D4: - | E4: - | F4: - | G4: - | H4: - | I4: - | J4: - | K4: -
A5: 16 | B5: - | C5: - | D5: - | E5: - | F5: - | G5: - | H5: - | I5: - | J5: - | K5: -
A6: 20 | B6: - | C6: - | D6: - | E6: - | F6: - | G6: - | H6: - | I6: - | J6: - | K6: -
A7: 25 | B7: - | C7: - | D7: - | E7: - | F7: - | G7: - | H7: - | I7: - | J7: - | K7: -
A8: 32 | B8: - | C8: - | D8: - | E8: - | F8: - | G8: - | H8: - | I8: - | J8: - | K8: -
A9: 35 | B9: - | C9: - | D9: - | E9: - | F9: - | G9: - | H9: - | I9: - | J9: - | K9: -
A10: 40 | B10: - | C10: R1233406 | D10: - | E10: - | F10: - | G10: - | H10: R1233407 | I10: - | J10: - | K10: -
A11: 50 | B11: - | C11: R1233506 | D11: - | E11: - | F11: - | G11: - | H11: R1233507 | I11: - | J11: - | K11: -
A12: 63 | B12: - | C12: R1233806 | D12: - | E12: - | F12: - | G12: - | H12: R1233807 | I12: - | J12: - | K12: -
A13: 80 | B13: - | C13: R1234106 | D13: - | E13: - | F13: - | G13: - | H13: R1234107 | I13: - | J13: - | K13: -
A14: 100 | B14: - | C14: R1234306 | D14: - | E14: - | F14: - | G14: - | H14: R1234307 | I14: - | J14: - | K14: -
A15: 125 | B15: - | C15: R1234606 | D15: R2234306 | E15: - | F15: - | G15: - | H15: R1234607 | I15: R2234307 | J15: - | K15: -
A16: 160 | B16: - | C16: R1234906 | D16: R2234906 | E16: - | F16: - | G16: - | H16: R1234907 | I16: R2234907 | J16: - | K16: -
A17: 200 | B17: - | C17: R1235206 | D17: R2235206 | E17: - | F17: - | G17: - | H17: R1235207 | I17: R2235207 | J17: - | K17: -
A18: 224 | B18: - | C18: - | D18: R2235306 | E18: - | F18: - | G18: - | H18: - | I18: R2235307 | J18: - | K18: -
A19: 250 | B19: - | C19: - | D19: R2235606 | E19: - | F19: - | G19: - | H19: - | I19: R2235607 | J19: - | K19: -
A20: 315 | B20: - | C20: - | D20: R2235906 | E20: - | F20: - | G20: - | H20: - | I20: R2235907 | J20: - | K20: -
A21: 350 | B21: - | C21: - | D21: R2236006 | E21: - | F21: - | G21: - | H21: - | I21: R2236007 | J21: - | K21: -
A22: 400 | B22: - | C22: - | D22: R2236206 | E22: - | F22: - | G22: - | H22: - | I22: R2236207 | J22: - | K22: -
A23: 425 | B23: - | C23: - | D23: - | E23: - | F23: - | G23: - | H23: - | I23: - | J23: - | K23: -
A24: 500 | B24: - | C24: - | D24: - | E24: - | F24: - | G24: - | H24: - | I24: - | J24: - | K24: -
A25: 630 | B25: - | C25: - | D25: - | E25: - | F25: - | G25: - | H25: - | I25: - | J25: - | K25: -
A26: 800 | B26: - | C26: - | D26: - | E26: - | F26: - | G26: - | H26: - | I26: - | J26: - | K26: -
A27: 1000 | B27: - | C27: - | D27: - | E27: - | F27: - | G27: - | H27: - | I27: - | J27: - | K27: -
A28: 1250 | B28: - | C28: - | D28: - | E28: - | F28: - | G28: - | H28: - | I28: - | J28: - | K28: -
A29: 1500 | B29: - | C29: - | D29: - | E29: - | F29: - | G29: - | H29: - | I29: - | J29: - | K29: -

Sheet KETO (hidden)
B1: 1-polig | C1: mech SÜ | D1: 2-polig | E1: mech SÜ | F1: 3-polig | G1: mech. SÜ | H1: 4-polig | I1: mech. SÜ | J1: TM
A2: NH000/NH00 | B2: T500111000 | C2: T8052170 | D2: T500112000 | E2: T8052170 | F2: T500113000 | G2: T8052170 | H2: T500114000 | I2: T8052170 | J2: N8584910
A3: NH1 | B3: T100111000 | C3: T8092170 | D3: T100112000 | E3: T8092170 | F3: T100113000 | G3: T8092170 | H3: T100114000 | I3: T8092170 | J3: N8185610
A4: NH2 | B4: T300111000 | C4: T8092170 | D4: T300112000 | E4: T8092170 | F4: T200113000 | G4: T8092170 | H4: T300114000 | I4: T8092170 | J4: N8286210
A5: NH3 | B5: T300111000 | C5: T8092170 | D5: T300112000 | E5: T8092170 | F5: T300113000 | G5: T8092170 | H5: T300114000 | I5: T8092170 | J5: N8386910
A6: NH4a | B6: T4911004 | C6: T8420057 | D6: T4911019 | E6: T8420057 | F6: T4911000 | G6: T8420057 | H6: T4911017 | I6: T8420057 | J6: N8417900
A7: NH4a (1600A) | B7: T4911005 | C7: T8420057 | D7: T4911031 | E7: T8420057 | F7: T4911001 | G7: T8420057 | H7: T4911018 | I7: T8420057 | J7: N8418300
